Workbook

Sheet INGRESO DE DATOS
O2: 24 years | P2: FALSE
O4: Descuento 24 años (por edad)
O5: age | P5: Discount (%) | Q5: Parameter | S5: Type | T5: Nuevo Negocio | V5: Región | W5: 2
O6: 24 | P6: 35 | Q6: =1-P6/100 -> 0.65 | T6: Renovación | W6: 3
O7: 25 | P7: 30 | Q7: =1-P7/100 -> 0.7 | T7: Renovación: Pólizas mayo - diciembre de 2024 | W7: 4
O8: 26 | P8: 25 | Q8: 0.75 | T8: Renovación: Pólizas 2025 | W8: 5
O9: 27 | P9: 20 | Q9: 0.8 | W9: 6
O10: 28 | P10: 15 | Q10: 0.85 | W10: 8
O11: 29 | P11: 6 | Q11: 0.94 | W11: 9
O12: All ages | P12: 0 | Q12: 1 | W12: Guatemala
S13: Type selected | T13: 4 | V13: Selección | W13: 8
V14: Región | W14: =IF(W13=1,"2",IF(W13=2,3,IF(W13=3,4,IF(W13=4,5,IF(W13=4,5,IF(W13=5,6,IF(W13=6,8,IF(W13=7,9,IF(W13=8,"Guatemala"))))))))) -> Guatemala
O19: Descuento de 24 años: | P19: =IF(P2,_xlfn.SWITCH(C40,O6,Q6,O7,Q7,O8,Q8,O9,Q9,O10,Q10,O11,Q11,Q12),Q12) -> 1 | R19: IVA: 12% | S19: =12/100 -> 0.12 | T19: =S19+1 -> 1.12
O24: Descuento por variante de coaseguro | P24: N/A
O26: Renovación: Pólizas mayo - diciembre de 2024 | V26: Renovación: Pólizas 2025
P27: Complete | Q27: Premium | R27: Secure | S27: Essential | T27: Classic | W27: Complete | X27: Premium | Y27: Secure | Z27: Essential | AA27: Classic
O28: 0 | P28: 0 | Q28: 0 | R28: 0 | S28: 0 | T28: 0.05 | V28: 0 | W28: 0 | X28: 0 | Y28: 0 | Z28: 0.15 | AA28: 0.05
O30: Descuento si es nuevo negocio (ENTRADA MANUAL)
O32: New business discount
P33: Complete | Q33: Premium | R33: Secure | S33: Essential | T33: Classic
O34: 0 | P34: 0 | Q34: 0 | R34: 0 | S34: 0 | T34: 0.15
A36: Nombre del Asegurado principal: | C36: John Doe
O37: Descuento combinado 24 años + Nuevo Negocio o Roneovaciones
A38: Número de adultos en la póliza: | C38: 2 | D38: Número de hijos en la póliza: | F38: 2
A40: Edad del titular: | C40: 32 | E40: Edad de cónyuge: | F40: 46 | O40: New business discount
P41: Complete | Q41: Premium | R41: Secure | S41: Essential | T41: Classic
H42: =IF(T13=1,"Essential y Classic Care Solamente","") ->  | O42: =1*$P$19 -> 1 | P42: =IF($T$13=1,(1-P28)*$P$19,IF($T$13=3,(1-P34)*$P$19,IF($T$13=4,(1-W28)*$P$19,1*$P$19))) -> 1 | Q42: =IF($T$13=1,(1-Q28)*$P$19,IF($T$13=3,(1-Q34)*$P$19,IF($T$13=4,(1-X28)*$P$19,1*$P$19))) -> 1 | R42: 1 | S42: 0.85 | T42: =IF($T$13=1,(1-T28)*$P$19,IF($T$13=3,(1-T34)*$P$19,IF($T$13=4,(1-AA28)*$P$19,1*$P$19))) -> 0.95
A44: Nombre de la Agencia : | C44: Agencia
O48: DISCOUNT PERU 2020
O50: EXCLUSIVE CARE
O51: 0.51
O53: PRIVILEGE CARE
O54: 0.51
O56: ADVANTAGE CARE
O57: 0.47
O59: SECURE CARE
O60: 0.54
O62: ESSENTIAL CARE
O63: 0.54

Sheet Bupa Complete Care
N1: RESUMEN DE BENEFICIOS | V1: RESUMEN DE BENEFICIOS
G2: TRUE | H2: FALSE
A5: Cotización de Seguro Médico Internacional Bupa Complete Care Tarifas en US$ | Validas: 1 de enero de 2026 | L5: REGIÓN
L7: =IF('INGRESO DE DATOS'!W14="Guatemala","GUATEMALA",'INGRESO DE DATOS'!W14) -> GUATEMALA
A13: Nombre del asegurado principal: | G13: =+'INGRESO DE DATOS'!$C$36 -> John Doe
A15: Broker/Agente | G15: =+'INGRESO DE DATOS'!$C$44 -> Agencia
B17: Número de Adultos en la Póliza | G17: =+'INGRESO DE DATOS'!$C$38 -> 2 | J17: Dependientes (menores de 24 años) | L17: =+'INGRESO DE DATOS'!$F$38 -> 2
J18: =IF('INGRESO DE DATOS'!$P$2=TRUE, "Cotización para dependiente de 24 años","") -> 
B19: Edad del Titular | G19: =+'INGRESO DE DATOS'!$C$40 -> 32 | J19: Edad del Cónyuge | L19: =+'INGRESO DE DATOS'!$F$40 -> 46
J21: Fecha de Cotización: | K21: =NOW() -> 2025-12-22T09:51:37.210
F29: DEDUCIBLES | G29: PLAN 1 | H29: PLAN 2 | I29: PLAN 3 | J29: PLAN 4 | K29: PLAN 5 | L29: PLAN 6
F30: Dentro del pais de residencia | G30: n/a | H30: 1000 | I30: 2000 | J30: 5000 | K30: 10000 | L30: 20000
F31: Fuera del pais de residencia | G31: n/a | H31: 2000 | I31: 3000 | J31: 5000 | K31: 10000 | L31: 20000
F34: TARIFAS ANUALES
F35: Prima de Titular | G35: n/a | H35: =VLOOKUP($G$19,Tablas!$A$10:$H$33,4,TRUE) -> 19182 | I35: =VLOOKUP($G$19,Tablas!$A$10:$H$33,5,TRUE) -> 14266 | J35: =VLOOKUP($G$19,Tablas!$A$10:$H$33,6,TRUE) -> 10408 | K35: =VLOOKUP($G$19,Tablas!$A$10:$H$33,7,TRUE) -> 7750 | L35: =VLOOKUP($G$19,Tablas!$A$10:$H$33,8,TRUE) -> 5930
F36: Prima de Cónyuge | G36: n/a | H36: =IF($G$17=1,0,(VLOOKUP($L$19,Tablas!$A$10:$H$33,4,TRUE))) -> 27808 | I36: =IF($G$17=1,0,(VLOOKUP($L$19,Tablas!$A$10:$H$33,5,TRUE))) -> 19540 | J36: =IF($G$17=1,0,(VLOOKUP($L$19,Tablas!$A$10:$H$33,6,TRUE))) -> 14487 | K36: =IF($G$17=1,0,(VLOOKUP($L$19,Tablas!$A$10:$H$33,7,TRUE))) -> 10704 | L36: =IF($G$17=1,0,(VLOOKUP($L$19,Tablas!$A$10:$H$33,8,TRUE))) -> 8201
F37: Primas Hijos | G37: n/a | H37: =IF($L$17=0,0,(VLOOKUP($L$17,Tablas!$A$34:$H$36,4,TRUE))) -> 9709 | I37: =IF($L$17=0,0,(VLOOKUP($L$17,Tablas!$A$34:$H$36,5,TRUE))) -> 7074 | J37: =IF($L$17=0,0,(VLOOKUP($L$17,Tablas!$A$34:$H$36,6,TRUE))) -> 5380 | K37: =IF($L$17=0,0,(VLOOKUP($L$17,Tablas!$A$34:$H$36,7,TRUE))) -> 4439 | L37: =IF($L$17=0,0,(VLOOKUP($L$17,Tablas!$A$34:$H$36,8,TRUE))) -> 3306
F38: Rider: Complicación de Maternidad | G38: n/a | H38: =+IF($G$2=FALSE,0,Tablas!D37) -> 0 | I38: =+IF($G$2=FALSE,0,Tablas!E37) -> 0 | J38: =+IF($G$2=FALSE,0,Tablas!F37) -> 225 | K38: =+IF($G$2=FALSE,0,Tablas!G37) -> 225 | L38: =+IF($G$2=FALSE,0,Tablas!H37) -> 225
F39: TOTAL PRIMA NETA | G39: n/a | H39: =SUM(H35:H38) -> 56699 | I39: =SUM(I35:I38) -> 40880 | J39: =SUM(J35:J38) -> 30500 | K39: =SUM(K35:K38) -> 23118 | L39: =SUM(L35:L38) -> 17662
F40: Costo Administrativo Anual | G40: n/a | H40: 75 | I40: 75 | J40: 75 | K40: 75 | L40: 75
F41: IVA (12%) | G41: n/a | H41: =SUM(H39:H40)*'INGRESO DE DATOS'!$S$19 -> 6812.88 | I41: =SUM(I39:I40)*'INGRESO DE DATOS'!$S$19 -> 4914.6 | J41: =SUM(J39:J40)*'INGRESO DE DATOS'!$S$19 -> 3669 | K41: =SUM(K39:K40)*'INGRESO DE DATOS'!$S$19 -> 2783.16 | L41: =SUM(L39:L40)*'INGRESO DE DATOS'!$S$19 -> 2128.44
F42: GRAN TOTAL: | G42: n/a | H42: =SUM(H39:H41) -> 63586.88 | I42: =SUM(I39:I41) -> 45869.6 | J42: 34244 | K42: 25976.16 | L42: 19865.44
F46: TARIFAS SEMESTRALES
F47: Prima de Titular | G47: n/a | H47: =VLOOKUP($G$19,Tablas!$A$45:$H$68,4,TRUE) -> 10166.46 | I47: =VLOOKUP($G$19,Tablas!$A$45:$H$68,5,TRUE) -> 7560.98 | J47: =VLOOKUP($G$19,Tablas!$A$45:$H$68,6,TRUE) -> 5516.24 | K47: =VLOOKUP($G$19,Tablas!$A$45:$H$68,7,TRUE) -> 4107.5 | L47: =VLOOKUP($G$19,Tablas!$A$45:$H$68,8,TRUE) -> 3142.9
F48: Prima de Cónyuge | G48: n/a | H48: =IF($G$17=1,0,(VLOOKUP($L$19,Tablas!$A$45:$H$68,4,TRUE))) -> 14738.24 | I48: =IF($G$17=1,0,(VLOOKUP($L$19,Tablas!$A$45:$H$68,5,TRUE))) -> 10356.2 | J48: =IF($G$17=1,0,(VLOOKUP($L$19,Tablas!$A$45:$H$68,6,TRUE))) -> 7678.11 | K48: =IF($G$17=1,0,(VLOOKUP($L$19,Tablas!$A$45:$H$68,7,TRUE))) -> 5673.12 | L48: =IF($G$17=1,0,(VLOOKUP($L$19,Tablas!$A$45:$H$68,8,TRUE))) -> 4346.53
F49: Primas Hijos | G49: n/a | H49: =IF($L$17=0,0,(VLOOKUP($L$17,Tablas!$A$69:$H$71,4,TRUE))) -> 5145.77 | I49: =IF($L$17=0,0,(VLOOKUP($L$17,Tablas!$A$69:$H$71,5,TRUE))) -> 3749.22 | J49: =IF($L$17=0,0,(VLOOKUP($L$17,Tablas!$A$69:$H$71,6,TRUE))) -> 2851.4 | K49: =IF($L$17=0,0,(VLOOKUP($L$17,Tablas!$A$69:$H$71,7,TRUE))) -> 2352.67 | L49: =IF($L$17=0,0,(VLOOKUP($L$17,Tablas!$A$69:$H$71,8,TRUE))) -> 1752.18
F50: Rider: Complicación de Maternidad | G50: n/a | H50: =+IF($G$2=FALSE,0,Tablas!D72) -> 0 | I50: =+IF($G$2=FALSE,0,Tablas!E72) -> 0 | J50: =+IF($G$2=FALSE,0,Tablas!F72) -> 119.25 | K50: =+IF($G$2=FALSE,0,Tablas!G72) -> 119.25 | L50: =+IF($G$2=FALSE,0,Tablas!H72) -> 119.25
F51: TOTAL PRIMA NETA | G51: n/a | H51: =SUM(H47:H50) -> 30050.47 | I51: =SUM(I47:I50) -> 21666.4 | J51: =SUM(J47:J50) -> 16165 | K51: =SUM(K47:K50) -> 12252.54 | L51: =SUM(L47:L50) -> 9360.86
F52: Costo Administrativo Anual | G52: n/a | H52: 75 | I52: 75 | J52: 75 | K52: 75 | L52: 75
F53: IVA (12%) | G53: n/a | H53: =SUM(H51:H52)*'INGRESO DE DATOS'!$S$19 -> 3615.0564 | I53: =SUM(I51:I52)*'INGRESO DE DATOS'!$S$19 -> 2608.968 | J53: =SUM(J51:J52)*'INGRESO DE DATOS'!$S$19 -> 1948.8 | K53: =SUM(K51:K52)*'INGRESO DE DATOS'!$S$19 -> 1479.3048 | L53: =SUM(L51:L52)*'INGRESO DE DATOS'!$S$19 -> 1132.3032
F54: TOTAL (1ra Cuota) | G54: n/a | H54: =SUM(H51:H53) -> 33740.5264 | I54: =SUM(I51:I53) -> 24350.368 | J54: 18188.8 | K54: 13806.8448 | L54: 10568.1632
F55: TOTAL (2da Cuota) | G55: n/a | H55: =H54-H52*'INGRESO DE DATOS'!$T$19 -> 33656.5264 | I55: =I54-I52*'INGRESO DE DATOS'!$T$19 -> 24266.368 | J55: =J54-J52*'INGRESO DE DATOS'!$T$19 -> 18104.8 | K55: =K54-K52*'INGRESO DE DATOS'!$T$19 -> 13722.8448 | L55: =L54-L52*'INGRESO DE DATOS'!$T$19 -> 10484.1632
F56: GRAN TOTAL | G56: n/a | H56: =SUM(H54:H55) -> 67397.0528 | I56: =SUM(I54:I55) -> 48616.736 | J56: 36293.6 | K56: 27529.6896 | L56: 21052.3264
F59: TARIFAS TRIMESTRALES
F60: Prima de Titular | G60: n/a | H60: =VLOOKUP($G$19,Tablas!$A$79:$H$102,4,TRUE) -> 5275.05 | I60: =VLOOKUP($G$19,Tablas!$A$79:$H$102,5,TRUE) -> 3923.15 | J60: =VLOOKUP($G$19,Tablas!$A$79:$H$102,6,TRUE) -> 2862.2 | K60: =VLOOKUP($G$19,Tablas!$A$79:$H$102,7,TRUE) -> 2131.25 | L60: =VLOOKUP($G$19,Tablas!$A$79:$H$102,8,TRUE) -> 1630.75
F61: Prima de Cónyuge | G61: n/a | H61: =IF($G$17=1,0,(VLOOKUP($L$19,Tablas!$A$79:$H$102,4,TRUE))) -> 7647.2 | I61: =IF($G$17=1,0,(VLOOKUP($L$19,Tablas!$A$79:$H$102,5,TRUE))) -> 5373.5 | J61: =IF($G$17=1,0,(VLOOKUP($L$19,Tablas!$A$79:$H$102,6,TRUE))) -> 3983.925 | K61: =IF($G$17=1,0,(VLOOKUP($L$19,Tablas!$A$79:$H$102,7,TRUE))) -> 2943.6 | L61: =IF($G$17=1,0,(VLOOKUP($L$19,Tablas!$A$79:$H$102,8,TRUE))) -> 2255.275
F62: Primas Hijos | G62: n/a | H62: =IF($L$17=0,0,(VLOOKUP($L$17,Tablas!$A$103:$H$105,4,TRUE))) -> 2669.975 | I62: =IF($L$17=0,0,(VLOOKUP($L$17,Tablas!$A$103:$H$105,5,TRUE))) -> 1945.35 | J62: =IF($L$17=0,0,(VLOOKUP($L$17,Tablas!$A$103:$H$105,6,TRUE))) -> 1479.5 | K62: =IF($L$17=0,0,(VLOOKUP($L$17,Tablas!$A$103:$H$105,7,TRUE))) -> 1220.725 | L62: =IF($L$17=0,0,(VLOOKUP($L$17,Tablas!$A$103:$H$105,8,TRUE))) -> 909.15
F63: Rider: Complicación de Maternidad | G63: n/a | H63: =+IF($G$2=FALSE,0,Tablas!D106) -> 0 | I63: =+IF($G$2=FALSE,0,Tablas!E106) -> 0 | J63: =+IF($G$2=FALSE,0,Tablas!F106) -> 61.875 | K63: =+IF($G$2=FALSE,0,Tablas!G106) -> 61.875 | L63: =+IF($G$2=FALSE,0,Tablas!H106) -> 61.875
F64: TOTAL PRIMA NETA | G64: n/a | H64: =SUM(H60:H63) -> 15592.225 | I64: =SUM(I60:I63) -> 11242 | J64: =SUM(J60:J63) -> 8387.5 | K64: =SUM(K60:K63) -> 6357.45 | L64: =SUM(L60:L63) -> 4857.05
F65: Costo Administrativo Anual | G65: n/a | H65: 75 | I65: 75 | J65: 75 | K65: 75 | L65: 75
F66: IVA (12%) | G66: n/a | H66: =SUM(H64:H65)*'INGRESO DE DATOS'!$S$19 -> 1880.067 | I66: =SUM(I64:I65)*'INGRESO DE DATOS'!$S$19 -> 1358.04 | J66: =SUM(J64:J65)*'INGRESO DE DATOS'!$S$19 -> 1015.5 | K66: =SUM(K64:K65)*'INGRESO DE DATOS'!$S$19 -> 771.894 | L66: =SUM(L64:L65)*'INGRESO DE DATOS'!$S$19 -> 591.846
F67: TOTAL (1ra Cuota) | G67: n/a | H67: =SUM(H64:H66) -> 17547.292 | I67: =SUM(I64:I66) -> 12675.04 | J67: 9478 | K67: 7204.344 | L67: 5523.896
F68: TOTAL (2da a 4ta Cuota) | G68: n/a | H68: =H67-H65*'INGRESO DE DATOS'!$T$19 -> 17463.292 | I68: =I67-I65*'INGRESO DE DATOS'!$T$19 -> 12591.04 | J68: =J67-J65*'INGRESO DE DATOS'!$T$19 -> 9394 | K68: =K67-K65*'INGRESO DE DATOS'!$T$19 -> 7120.344 | L68: =L67-L65*'INGRESO DE DATOS'!$T$19 -> 5439.896
F69: GRAN TOTAL | G69: n/a | H69: =H67+H68*3 -> 69937.168 | I69: =I67+I68*3 -> 50448.16 | J69: 37660 | K69: 28565.376 | L69: 21843.584
F72: Este presupuesto solamente tiene carácter informativo y en ningún momento expresa compromiso legal para suministrarle cobertura de seguro. La emisión de una póliza de seguro Bupa está sujeta a todas las evaluaciones de riesgo por parte de Bupa y a la recepción de todos los pagos de prima requeridos.

Sheet Advantage (LA) (hidden)
A10: Cotización de Seguro Médico Internacional - Bupa ADVANTAGE Care (cobertura solo Latinoamérica)
A12: Bupa Advantage Care (cobertura solo en Latinoamérica) | H12: =+'INGRESO DE DATOS'!$C$36 -> John Doe
A13: Cobertura Máxima anual | C13: US $ 3,500,000
A14: Cobertura Geografica | C14: Limitada a Latinoamérica excluyendo México | H14: =+'INGRESO DE DATOS'!$C$44 -> Agencia
A15: Condiciones médicas cubiertas | C15: Todas las condiciones médicas
A16: Redes de proveedores | C16: Red de Proveedores "Bupa Advantage" | J16: =+'INGRESO DE DATOS'!$C$38 -> 2 | M16: =+'INGRESO DE DATOS'!$C$40 -> 32
A17: Opciones fuera de la Red | C17: NO, solo en casos de emergencia | F17: FECHA DE COTIZACION :
A18: Requiere preautorización | C18: SI, 30% de penalización por omitir prenotificación | F18: =NOW() -> 2025-12-22T09:51:37.210 | J18: =+'INGRESO DE DATOS'!$F$38 -> 2 | M18: =+'INGRESO DE DATOS'!$F$40 -> 46
A20: Número máximo de días de hospitalización | C20: Ilimitado | I20: TRUE | K20: COMPLICACIONES DE MATERNIDAD
A21: Habitación y alimentación | C21: 100% dentro de Red Bupa
C22: "UCR" para L.A. en emergencias fuera de Red Bupa | I22: TRUE | K22: TRASPLANTE DE ORGANOS
A23: Cuidados Intensivos | C23: 100% dentro de Red Bupa
C24: "UCR" para L.A. en emergencias fuera de Red Bupa
A25: Cobertura de Maternidad | C25: $5,000 (Excepto planes 4,5, y 6) | F25: Deducibles | H25: PLAN 1 | I25: PLAN 2 | J25: PLAN 3 | K25: PLAN 4 | L25: PLAN 5 | M25: PLAN 6
A26: Cobertura Provisional de Recién Nacido | C26: $30,000 por los primeros 90 días | F26: Dentro del pais de residencia | H26: n/a | I26: 1000 | J26: 2000 | K26: 5000 | L26: 10000 | M26: 20000
A27: Cuidado del Recién Nacido saludable | C27: Ya incluída dentro del beneficio de Maternidad | F27: Fuera del pais de residencia | H27: n/a | I27: 2000 | J27: 3000 | K27: 5000 | L27: 10000 | M27: 20000
A28: Cobertura de Complicaciones de Maternidad | C28: Disponible a través de cobertura opcional adicional
A29: Trasplante de Organos | C29: $1,000,000 de por vida, por diagnóstico
A30: Condiciones congénitas y hereditarias | C30: <18 años $300,000 de por vida; >=18 al 100% | F30: Tarifas Anuales
A31: Coberturas opcionales (Riders) | C31: Complicaciones de Maternidad por $500,000 | F31: Prima de Titular : | H31: n/a | I31: =VLOOKUP($M$16,Tablas!#REF!,4,TRUE) ->  | J31: =VLOOKUP($M$16,Tablas!#REF!,5,TRUE) ->  | K31: =VLOOKUP($M$16,Tablas!#REF!,6,TRUE) ->  | L31: =VLOOKUP($M$16,Tablas!#REF!,7,TRUE) ->  | M31: =VLOOKUP($M$16,Tablas!#REF!,8,TRUE) -> 
C32: Trasplante de órganos por $ 300,000 adicionales | F32: Prima de Cónyuge | H32: n/a | I32: =IF($J$16=1,0,(VLOOKUP($M$18,Tablas!#REF!,4,TRUE))) ->  | J32: =IF($J$16=1,0,(VLOOKUP($M$18,Tablas!#REF!,5,TRUE))) ->  | K32: =IF($J$16=1,0,(VLOOKUP($M$18,Tablas!#REF!,6,TRUE))) ->  | L32: =IF($J$16=1,0,(VLOOKUP($M$18,Tablas!#REF!,7,TRUE))) ->  | M32: =IF($J$16=1,0,(VLOOKUP($M$18,Tablas!#REF!,8,TRUE))) -> 
A33: Acompañamiento de menores hospitalizados | C33: $300 por día | F33: Primas Hijos : | H33: n/a | I33: =IF($J$18=0,0,(VLOOKUP($J$18,Tablas!#REF!,4,TRUE))) ->  | J33: =IF($J$18=0,0,(VLOOKUP($J$18,Tablas!#REF!,5,TRUE))) ->  | K33: =IF($J$18=0,0,(VLOOKUP($J$18,Tablas!#REF!,6,TRUE))) ->  | L33: =IF($J$18=0,0,(VLOOKUP($J$18,Tablas!#REF!,7,TRUE))) ->  | M33: =IF($J$18=0,0,(VLOOKUP($J$18,Tablas!#REF!,8,TRUE))) -> 
A34: Ambulancia aérea | C34: $100,000 por año y ticket aéreo de retorno | F34: Prima Rider Complic. Maternidad | H34: n/a | I34: =+IF($I$20=FALSE,0,Tablas!#REF!) ->  | J34: =+IF($I$20=FALSE,0,Tablas!#REF!) ->  | K34: =+IF($I$20=FALSE,0,Tablas!#REF!) ->  | L34: =+IF($I$20=FALSE,0,Tablas!#REF!) ->  | M34: =+IF($I$20=FALSE,0,Tablas!#REF!) -> 
A35: Repatriación restos mortales | C35: 1 | F35: Prima Rider Trasplante Organos | H35: n/a | I35: =IF($I$22=FALSE,0,Tablas!#REF!) ->  | J35: =IF($I$22=FALSE,0,Tablas!#REF!) ->  | K35: =IF($I$22=FALSE,0,Tablas!#REF!) ->  | L35: =IF($I$22=FALSE,0,Tablas!#REF!) ->  | M35: =IF($I$22=FALSE,0,Tablas!#REF!) -> 
A36: Medicamentos por receta | C36: $6,000 por Asegurado, por año póliza | F36: TOTAL PRIMA NETA : | H36: n/a | I36: =SUM(I31:I35) -> 
A37: Almacenamiento de sangre de cordon umbilical | C37: $500 (Excepto planes 4,5, y 6) | F37: Costo Administrativo Anual : | H37: n/a | I37: 75 | J37: 75 | K37: 75 | L37: 75 | M37: 75
F38: GRAN TOTAL : | H38: n/a | I38: =SUM(I36:I37) ->  | J38: =SUM(J36:J37) ->  | K38: =SUM(K36:K37) ->  | L38: =SUM(L36:L37) ->  | M38: =SUM(M36:M37) -> 
A39: Atención médica en el hogar | C39: 100% de usual/acostumbrado y razonable
A40: Rehabilitación | C40: 100% de usual/acostumbrado y razonable | F40: Tarifas Semestrales
A41: Residencia y cuidados paliativos | C41: 100% de usual/acostumbrado y razonable | F41: Prima de Titular : | H41: n/a | I41: =VLOOKUP($M$16,Tablas!#REF!,4,TRUE) ->  | J41: =VLOOKUP($M$16,Tablas!#REF!,5,TRUE) ->  | K41: =VLOOKUP($M$16,Tablas!#REF!,6,TRUE) ->  | L41: =VLOOKUP($M$16,Tablas!#REF!,7,TRUE) ->  | M41: =VLOOKUP($M$16,Tablas!#REF!,8,TRUE) -> 
A42: Cobertura de actividades peligrosas | C42: 1 | F42: Prima de Cónyuge | H42: n/a | I42: =IF($J$16=1,0,(VLOOKUP($M$18,Tablas!#REF!,4,TRUE))) ->  | J42: =IF($J$16=1,0,(VLOOKUP($M$18,Tablas!#REF!,5,TRUE))) ->  | K42: =IF($J$16=1,0,(VLOOKUP($M$18,Tablas!#REF!,6,TRUE))) ->  | L42: =IF($J$16=1,0,(VLOOKUP($M$18,Tablas!#REF!,7,TRUE))) ->  | M42: =IF($J$16=1,0,(VLOOKUP($M$18,Tablas!#REF!,8,TRUE))) -> 
A43: Chequeos generales de rutina | C43: Hasta US$150 por año póliza.Sin deducible | F43: Primas Hijos : | H43: n/a | I43: =IF($J$18=0,0,(VLOOKUP($J$18,Tablas!#REF!,4,TRUE))) ->  | J43: =IF($J$18=0,0,(VLOOKUP($J$18,Tablas!#REF!,5,TRUE))) ->  | K43: =IF($J$18=0,0,(VLOOKUP($J$18,Tablas!#REF!,6,TRUE))) ->  | L43: =IF($J$18=0,0,(VLOOKUP($J$18,Tablas!#REF!,7,TRUE))) ->  | M43: =IF($J$18=0,0,(VLOOKUP($J$18,Tablas!#REF!,8,TRUE))) -> 
A44: Cobertura de VIH, SIDA, CAS | C44: Solo como efecto de transfusión de sangre | F44: Prima Rider Complic. Maternidad | H44: n/a | I44: =+IF($I$20=FALSE,0,Tablas!#REF!) ->  | J44: =+IF($I$20=FALSE,0,Tablas!#REF!) ->  | K44: =+IF($I$20=FALSE,0,Tablas!#REF!) ->  | L44: =+IF($I$20=FALSE,0,Tablas!#REF!) ->  | M44: =+IF($I$20=FALSE,0,Tablas!#REF!) -> 
A45: Cobertura de brazos y piernas artificiales | C45: $30,000 por año y hasta $120,000 de por vida | F45: Prima Rider Trasplante Organos | H45: n/a | I45: =IF($I$22=FALSE,0,Tablas!#REF!) ->  | J45: =IF($I$22=FALSE,0,Tablas!#REF!) ->  | K45: =IF($I$22=FALSE,0,Tablas!#REF!) ->  | L45: =IF($I$22=FALSE,0,Tablas!#REF!) ->  | M45: =IF($I$22=FALSE,0,Tablas!#REF!) -> 
A46: Cobertura extendida para dependientes en caso de muerte de asegurado principal | C46: 2 años sin costo | F46: TOTAL PRIMA NETA : | H46: n/a | I46: =SUM(I41:I45) -> 
F47: Costo Administrativo Anual : | H47: n/a | I47: 75 | J47: 75 | K47: 75 | L47: 75 | M47: 75
F48: GRAN TOTAL (1ra Cuota) : | H48: n/a | I48: =SUM(I46:I47) ->  | J48: =SUM(J46:J47) ->  | K48: =SUM(K46:K47) ->  | L48: =SUM(L46:L47) ->  | M48: =SUM(M46:M47) -> 
F49: GRAN TOTAL (2da Cuota) : | H49: n/a | I49: =I46 ->  | J49: =J46 -> 
F50: Tarifas en US $ - Válidas desde 01 Ene 2013

Sheet Bupa Premium Care
N1: RESUMEN DE BENEFICIOS | V1: RESUMEN DE BENEFICIOS
G2: TRUE | H2: TRUE
G3: TRUE
A5: Cotización de Seguro Médico Internacional Bupa Premium Care Tarifas en US$ | Validas: 1 de enero de 2026 | L5: REGIÓN
L7: =IF('INGRESO DE DATOS'!W14="Guatemala","GUATEMALA",'INGRESO DE DATOS'!W14) -> GUATEMALA
A13: Nombre del asegurado principal: | G13: =+'INGRESO DE DATOS'!$C$36 -> John Doe
A15: Broker/Agente | G15: =+'INGRESO DE DATOS'!$C$44 -> Agencia
B17: Número de Adultos en la Póliza | G17: =+'INGRESO DE DATOS'!$C$38 -> 2 | J17: Dependientes (menores de 24 años) | L17: =+'INGRESO DE DATOS'!$F$38 -> 2
J18: =IF('INGRESO DE DATOS'!$P$2=TRUE, "Cotización para dependiente de 24 años","") -> 
B19: Edad del Titular | G19: =+'INGRESO DE DATOS'!$C$40 -> 32 | J19: Edad del Cónyuge | L19: =+'INGRESO DE DATOS'!$F$40 -> 46
J23: Fecha de Cotización: | K23: =NOW() -> 2025-12-22T09:51:37.210
F31: DEDUCIBLES | G31: PLAN 1 | H31: PLAN 2 | I31: PLAN 3 | J31: PLAN 4 | K31: PLAN 5 | L31: PLAN 6
F32: Dentro del pais de residencia | G32: n/a | H32: 1000 | I32: 2000 | J32: 5000 | K32: 10000 | L32: 20000
F33: Fuera del pais de residencia | G33: n/a | H33: 2000 | I33: 3000 | J33: 5000 | K33: 10000 | L33: 20000
F36: TARIFAS ANUALES
F37: Prima de Titular | G37: n/a | H37: =VLOOKUP($G$19,Tablas!$A$677:$H$739,4,TRUE) -> 11502 | I37: =VLOOKUP($G$19,Tablas!$A$677:$H$739,5,TRUE) -> 8809 | J37: =VLOOKUP($G$19,Tablas!$A$677:$H$739,6,TRUE) -> 6441 | K37: =VLOOKUP($G$19,Tablas!$A$677:$H$739,7,TRUE) -> 4800 | L37: =VLOOKUP($G$19,Tablas!$A$677:$H$739,8,TRUE) -> 3714
F38: Prima de Cónyuge | G38: n/a | H38: =IF($G$17=1,0,(VLOOKUP($L$19,Tablas!$A$677:$H$739,4,TRUE))) -> 16222 | I38: =IF($G$17=1,0,(VLOOKUP($L$19,Tablas!$A$677:$H$739,5,TRUE))) -> 12967 | J38: =IF($G$17=1,0,(VLOOKUP($L$19,Tablas!$A$677:$H$739,6,TRUE))) -> 10010 | K38: =IF($G$17=1,0,(VLOOKUP($L$19,Tablas!$A$677:$H$739,7,TRUE))) -> 7425 | L38: =IF($G$17=1,0,(VLOOKUP($L$19,Tablas!$A$677:$H$739,8,TRUE))) -> 5109
F39: Primas Hijos | G39: n/a | H39: =IF($L$17=0,0,(VLOOKUP($L$17,Tablas!$A$740:$H$742,4,TRUE))) -> 6851 | I39: =IF($L$17=0,0,(VLOOKUP($L$17,Tablas!$A$740:$H$742,5,TRUE))) -> 4731 | J39: =IF($L$17=0,0,(VLOOKUP($L$17,Tablas!$A$740:$H$742,6,TRUE))) -> 3499 | K39: =IF($L$17=0,0,(VLOOKUP($L$17,Tablas!$A$740:$H$742,7,TRUE))) -> 3021 | L39: =IF($L$17=0,0,(VLOOKUP($L$17,Tablas!$A$740:$H$742,8,TRUE))) -> 2014
F40: Rider: Complicación de Maternidad | G40: n/a | H40: =+IF($G$2=FALSE,0,Tablas!D743) -> 225 | I40: =+IF($G$2=FALSE,0,Tablas!E743) -> 225 | J40: =+IF($G$2=FALSE,0,Tablas!F743) -> 225 | K40: =+IF($G$2=FALSE,0,Tablas!G743) -> 225 | L40: =+IF($G$2=FALSE,0,Tablas!H743) -> 225
F41: Rider: Trasplante Órganos | G41: n/a | H41: =+IF($H$2=FALSE,0,Tablas!D744) -> 300 | I41: =+IF($H$2=FALSE,0,Tablas!E744) -> 300 | J41: =+IF($H$2=FALSE,0,Tablas!F744) -> 300 | K41: =+IF($H$2=FALSE,0,Tablas!G744) -> 300 | L41: =+IF($H$2=FALSE,0,Tablas!H744) -> 300
F42: Rider: Eliminación de Deducible | G42: n/a | H42: =+IF($G$3=FALSE,0,Tablas!D745) -> 180 | I42: =+IF($G$3=FALSE,0,Tablas!E745) -> 345 | J42: =+IF($G$3=FALSE,0,Tablas!F745) -> 775 | K42: =+IF($G$3=FALSE,0,Tablas!G745) -> 1330 | L42: =+IF($G$3=FALSE,0,Tablas!H745) -> 2080
F43: TOTAL PRIMA NETA | G43: n/a | H43: =SUM(H37:H42) -> 35280 | I43: =SUM(I37:I42) -> 27377 | J43: 21250 | K43: 17101 | L43: 13442
F44: Costo Administrativo Anual | G44: n/a | H44: 75 | I44: 75 | J44: 75 | K44: 75 | L44: 75
F45: IVA (12%) | G45: n/a | H45: =SUM(H43:H44)*'INGRESO DE DATOS'!$S$19 -> 4242.6 | I45: =SUM(I43:I44)*'INGRESO DE DATOS'!$S$19 -> 3294.24 | J45: =SUM(J43:J44)*'INGRESO DE DATOS'!$S$19 -> 2559 | K45: =SUM(K43:K44)*'INGRESO DE DATOS'!$S$19 -> 2061.12 | L45: =SUM(L43:L44)*'INGRESO DE DATOS'!$S$19 -> 1622.04
F46: GRAN TOTAL: | G46: n/a | H46: =SUM(H43:H45) -> 39597.6 | I46: =SUM(I43:I45) -> 30746.24 | J46: 23884 | K46: 19237.12 | L46: 15139.04
F49: TARIFAS SEMESTRALES
F50: Prima de Titular | G50: n/a | H50: =VLOOKUP($G$19,Tablas!$A$752:$H$814,4,TRUE) -> 6096.06 | I50: =VLOOKUP($G$19,Tablas!$A$752:$H$814,5,TRUE) -> 4668.77 | J50: =VLOOKUP($G$19,Tablas!$A$752:$H$814,6,TRUE) -> 3413.73 | K50: =VLOOKUP($G$19,Tablas!$A$752:$H$814,7,TRUE) -> 2544 | L50: =VLOOKUP($G$19,Tablas!$A$752:$H$814,8,TRUE) -> 1968.42
F51: Prima de Cónyuge | G51: n/a | H51: =IF($G$17=1,0,(VLOOKUP($L$19,Tablas!$A$752:$H$814,4,TRUE))) -> 8597.66 | I51: =IF($G$17=1,0,(VLOOKUP($L$19,Tablas!$A$752:$H$814,5,TRUE))) -> 6872.51 | J51: =IF($G$17=1,0,(VLOOKUP($L$19,Tablas!$A$752:$H$814,6,TRUE))) -> 5305.3 | K51: =IF($G$17=1,0,(VLOOKUP($L$19,Tablas!$A$752:$H$814,7,TRUE))) -> 3935.25 | L51: =IF($G$17=1,0,(VLOOKUP($L$19,Tablas!$A$752:$H$814,8,TRUE))) -> 2707.77
F52: Primas Hijos | G52: n/a | H52: =IF($L$17=0,0,(VLOOKUP($L$17,Tablas!$A$815:$H$817,4,TRUE))) -> 3631.03 | I52: =IF($L$17=0,0,(VLOOKUP($L$17,Tablas!$A$815:$H$817,5,TRUE))) -> 2507.43 | J52: =IF($L$17=0,0,(VLOOKUP($L$17,Tablas!$A$815:$H$817,6,TRUE))) -> 1854.47 | K52: =IF($L$17=0,0,(VLOOKUP($L$17,Tablas!$A$815:$H$817,7,TRUE))) -> 1601.13 | L52: =IF($L$17=0,0,(VLOOKUP($L$17,Tablas!$A$815:$H$817,8,TRUE))) -> 1067.42
F53: Rider: Complicación de Maternidad | G53: n/a | H53: =+IF($G$2=FALSE,0,Tablas!D818) -> 119.25 | I53: =+IF($G$2=FALSE,0,Tablas!E818) -> 119.25 | J53: =+IF($G$2=FALSE,0,Tablas!F818) -> 119.25 | K53: =+IF($G$2=FALSE,0,Tablas!G818) -> 119.25 | L53: =+IF($G$2=FALSE,0,Tablas!H818) -> 119.25
F54: Rider: Trasplante Órganos | G54: n/a | H54: =+IF($H$2=FALSE,0,Tablas!D819) -> 159 | I54: =+IF($H$2=FALSE,0,Tablas!E819) -> 159 | J54: =+IF($H$2=FALSE,0,Tablas!F819) -> 159 | K54: =+IF($H$2=FALSE,0,Tablas!G819) -> 159 | L54: =+IF($H$2=FALSE,0,Tablas!H819) -> 159
F55: Rider: Eliminación de Deducible | G55: n/a | H55: =+IF($G$3=FALSE,0,Tablas!D820) -> 95.4 | I55: =+IF($G$3=FALSE,0,Tablas!E820) -> 182.85 | J55: =+IF($G$3=FALSE,0,Tablas!F820) -> 410.75 | K55: =+IF($G$3=FALSE,0,Tablas!G820) -> 704.9 | L55: =+IF($G$3=FALSE,0,Tablas!H820) -> 1102.4
F56: TOTAL PRIMA NETA | G56: n/a | H56: =SUM(H50:H55) -> 18698.4 | I56: =SUM(I50:I55) -> 14509.81 | J56: =SUM(J50:J55) -> 11262.5 | K56: =SUM(K50:K55) -> 9063.53 | L56: =SUM(L50:L55) -> 7124.26
F57: Costo Administrativo Anual | G57: n/a | H57: 75 | I57: 75 | J57: 75 | K57: 75 | L57: 75
F58: IVA (12%) | G58: n/a | H58: =SUM(H56:H57)*'INGRESO DE DATOS'!$S$19 -> 2252.808 | I58: =SUM(I56:I57)*'INGRESO DE DATOS'!$S$19 -> 1750.1772 | J58: =SUM(J56:J57)*'INGRESO DE DATOS'!$S$19 -> 1360.5 | K58: =SUM(K56:K57)*'INGRESO DE DATOS'!$S$19 -> 1096.6236 | L58: =SUM(L56:L57)*'INGRESO DE DATOS'!$S$19 -> 863.9112
F59: TOTAL (1ra Cuota) | G59: n/a | H59: =SUM(H56:H58) -> 21026.208 | I59: =SUM(I56:I58) -> 16334.9872 | J59: 12698 | K59: 10235.1536 | L59: 8063.1712
F60: TOTAL (2da Cuota) | G60: n/a | H60: =H59-H57*'INGRESO DE DATOS'!$T$19 -> 20942.208 | I60: =I59-I57*'INGRESO DE DATOS'!$T$19 -> 16250.9872 | J60: =J59-J57*'INGRESO DE DATOS'!$T$19 -> 12614 | K60: =K59-K57*'INGRESO DE DATOS'!$T$19 -> 10151.1536 | L60: =L59-L57*'INGRESO DE DATOS'!$T$19 -> 7979.1712
F61: GRAN TOTAL | G61: n/a | H61: =SUM(H59:H60) -> 41968.416 | I61: =SUM(I59:I60) -> 32585.9744 | J61: 25312 | K61: 20386.3072 | L61: 16042.3424
F64: TARIFAS TRIMESTRALES
F65: Prima de Titular | G65: n/a | H65: =VLOOKUP($G$19,Tablas!$A$828:$H$890,4,TRUE) -> 3163.05 | I65: =VLOOKUP($G$19,Tablas!$A$828:$H$890,5,TRUE) -> 2422.475 | J65: =VLOOKUP($G$19,Tablas!$A$828:$H$890,6,TRUE) -> 1771.275 | K65: =VLOOKUP($G$19,Tablas!$A$828:$H$890,7,TRUE) -> 1320 | L65: =VLOOKUP($G$19,Tablas!$A$828:$H$890,8,TRUE) -> 1021.35
F66: Prima de Cónyuge | G66: n/a | H66: =IF($G$17=1,0,(VLOOKUP($L$19,Tablas!$A$828:$H$890,4,TRUE))) -> 4461.05 | I66: =IF($G$17=1,0,(VLOOKUP($L$19,Tablas!$A$828:$H$890,5,TRUE))) -> 3565.925 | J66: =IF($G$17=1,0,(VLOOKUP($L$19,Tablas!$A$828:$H$890,6,TRUE))) -> 2752.75 | K66: =IF($G$17=1,0,(VLOOKUP($L$19,Tablas!$A$828:$H$890,7,TRUE))) -> 2041.875 | L66: =IF($G$17=1,0,(VLOOKUP($L$19,Tablas!$A$828:$H$890,8,TRUE))) -> 1404.975
F67: Primas Hijos | G67: n/a | H67: =IF($L$17=0,0,(VLOOKUP($L$17,Tablas!$A$891:$H$893,4,TRUE))) -> 1884.025 | I67: =IF($L$17=0,0,(VLOOKUP($L$17,Tablas!$A$891:$H$893,5,TRUE))) -> 1301.025 | J67: =IF($L$17=0,0,(VLOOKUP($L$17,Tablas!$A$891:$H$893,6,TRUE))) -> 962.225 | K67: =IF($L$17=0,0,(VLOOKUP($L$17,Tablas!$A$891:$H$893,7,TRUE))) -> 830.775 | L67: =IF($L$17=0,0,(VLOOKUP($L$17,Tablas!$A$891:$H$893,8,TRUE))) -> 553.85
F68: Rider: Complicación de Maternidad | G68: n/a | H68: =+IF($G$2=FALSE,0,Tablas!D894) -> 61.875 | I68: =+IF($G$2=FALSE,0,Tablas!E894) -> 61.875 | J68: =+IF($G$2=FALSE,0,Tablas!F894) -> 61.875 | K68: =+IF($G$2=FALSE,0,Tablas!G894) -> 61.875 | L68: =+IF($G$2=FALSE,0,Tablas!H894) -> 61.875
F69: Rider: Trasplante Órganos | G69: n/a | H69: =+IF($H$2=FALSE,0,Tablas!D895) -> 82.5 | I69: =+IF($H$2=FALSE,0,Tablas!E895) -> 82.5 | J69: =+IF($H$2=FALSE,0,Tablas!F895) -> 82.5 | K69: =+IF($H$2=FALSE,0,Tablas!G895) -> 82.5 | L69: =+IF($H$2=FALSE,0,Tablas!H895) -> 82.5
F70: Rider: Eliminación de Deducible | G70: n/a | H70: =+IF($G$3=FALSE,0,Tablas!D896) -> 49.5 | I70: =+IF($G$3=FALSE,0,Tablas!E896) -> 94.875 | J70: =+IF($G$3=FALSE,0,Tablas!F896) -> 213.125 | K70: =+IF($G$3=FALSE,0,Tablas!G896) -> 365.75 | L70: =+IF($G$3=FALSE,0,Tablas!H896) -> 572
F71: TOTAL PRIMA NETA | G71: n/a | H71: =SUM(H65:H70) -> 9702 | I71: =SUM(I65:I70) -> 7528.675 | J71: =SUM(J65:J70) -> 5843.75 | K71: =SUM(K65:K70) -> 4702.775 | L71: =SUM(L65:L70) -> 3696.55
F72: Costo Administrativo Anual | G72: n/a | H72: 75 | I72: 75 | J72: 75 | K72: 75 | L72: 75
F73: IVA (12%) | G73: n/a | H73: =SUM(H71:H72)*'INGRESO DE DATOS'!$S$19 -> 1173.24 | I73: =SUM(I71:I72)*'INGRESO DE DATOS'!$S$19 -> 912.441 | J73: =SUM(J71:J72)*'INGRESO DE DATOS'!$S$19 -> 710.25 | K73: =SUM(K71:K72)*'INGRESO DE DATOS'!$S$19 -> 573.333 | L73: =SUM(L71:L72)*'INGRESO DE DATOS'!$S$19 -> 452.586
F74: TOTAL (1ra Cuota) | G74: n/a | H74: =SUM(H71:H73) -> 10950.24 | I74: =SUM(I71:I73) -> 8516.116 | J74: 6629 | K74: 5351.108 | L74: 4224.136
F75: TOTAL (2da a 4ta Cuota) | G75: n/a | H75: =H74-H72*'INGRESO DE DATOS'!$T$19 -> 10866.24 | I75: =I74-I72*'INGRESO DE DATOS'!$T$19 -> 8432.116 | J75: =J74-J72*'INGRESO DE DATOS'!$T$19 -> 6545 | K75: =K74-K72*'INGRESO DE DATOS'!$T$19 -> 5267.108 | L75: =L74-L72*'INGRESO DE DATOS'!$T$19 -> 4140.136
F76: GRAN TOTAL | G76: n/a | H76: =H74+H75*3 -> 43548.96 | I76: =I74+I75*3 -> 33812.464 | J76: 26264 | K76: 21152.432 | L76: 16644.544
F81: Este presupuesto solamente tiene carácter informativo y en ningún momento expresa compromiso legal para suministrarle cobertura de seguro. La emisión de una póliza de seguro Bupa está sujeta a todas las evaluaciones de riesgo por parte de Bupa y a la recepción de todos los pagos de prima requeridos.

Sheet Bupa Secure Care
B1: TRUE | C1: TRUE | I1: RESUMEN DE BENEFICIOS | Q1: RESUMEN DE BENEFICIOS
A5: Cotización de Seguro Médico Internacional Bupa Secure Care Tarifas en US$ | Validas: 1 de enero de 2026 | G5: REGIÓN
G7: =IF('INGRESO DE DATOS'!W14="Guatemala","GUATEMALA",'INGRESO DE DATOS'!W14) -> GUATEMALA
A13: Nombre del asegurado principal | B13: =+'INGRESO DE DATOS'!$C$36 -> John Doe
A15: Broker/Agente | B15: =+'INGRESO DE DATOS'!$C$44 -> Agencia
A17: Número de Adultos en la Póliza | B17: =+'INGRESO DE DATOS'!$C$38 -> 2 | D17: Dependientes (menores de 24 años) | G17: =+'INGRESO DE DATOS'!$F$38 -> 2
D18: =IF('INGRESO DE DATOS'!$P$2=TRUE, "Cotización para dependiente de 24 años","") -> 
A19: Edad del Titular | B19: =+'INGRESO DE DATOS'!$C$40 -> 32 | D19: Edad del Cónyuge | G19: =+'INGRESO DE DATOS'!$F$40 -> 46
D21: Fecha de Cotización: | F21: =NOW() -> 2025-12-22T09:51:37.210
A25: DEDUCIBLES | B25: PLAN 1 | C25: PLAN 2 | D25: PLAN 3 | E25: PLAN 4 | F25: PLAN 5 | G25: PLAN 6
A26: Dentro del pais de residencia | B26: n/a | C26: 1000 | D26: 2000 | E26: 5000 | F26: 10000 | G26: 20000
A27: Fuera del pais de residencia | B27: n/a | C27: 2000 | D27: 3000 | E27: 5000 | F27: 10000 | G27: 20000
A30: TARIFAS ANUALES
A31: Prima de Titular | B31: n/a | C31: =VLOOKUP($B$19,Tablas!$A$118:$H$141,4,TRUE) -> 10799 | D31: =VLOOKUP($B$19,Tablas!$A$118:$H$141,5,TRUE) -> 8846 | E31: =VLOOKUP($B$19,Tablas!$A$118:$H$141,6,TRUE) -> 6540 | F31: =VLOOKUP($B$19,Tablas!$A$118:$H$141,7,TRUE) -> 5486 | G31: =VLOOKUP($B$19,Tablas!$A$118:$H$141,8,TRUE) -> 4167
A32: Prima de Cónyuge | B32: n/a | C32: =IF($B$17=1,0,(VLOOKUP($G$19,Tablas!$A$828:$H$890,4,TRUE))) -> 4461.05 | D32: =IF($B$17=1,0,(VLOOKUP($G$19,Tablas!$A$828:$H$890,5,TRUE))) -> 3565.925 | E32: =IF($B$17=1,0,(VLOOKUP($G$19,Tablas!$A$828:$H$890,6,TRUE))) -> 2752.75 | F32: =IF($B$17=1,0,(VLOOKUP($G$19,Tablas!$A$828:$H$890,7,TRUE))) -> 2041.875 | G32: =IF($B$17=1,0,(VLOOKUP($G$19,Tablas!$A$828:$H$890,8,TRUE))) -> 1404.975
A33: Primas Hijos | B33: n/a | C33: =IF($G$17=0,0,(VLOOKUP($G$17,Tablas!$A$142:$H$144,4,TRUE))) -> 6980 | D33: =IF($G$17=0,0,(VLOOKUP($G$17,Tablas!$A$142:$H$144,5,TRUE))) -> 3636 | E33: =IF($G$17=0,0,(VLOOKUP($G$17,Tablas!$A$142:$H$144,6,TRUE))) -> 3178 | F33: =IF($G$17=0,0,(VLOOKUP($G$17,Tablas!$A$142:$H$144,7,TRUE))) -> 2655 | G33: =IF($G$17=0,0,(VLOOKUP($G$17,Tablas!$A$142:$H$144,8,TRUE))) -> 1948
A34: Rider: Complicaciones de Maternidad | B34: n/a | C34: =+IF($B$1=FALSE,0,Tablas!D145) -> 225 | D34: =+IF($B$1=FALSE,0,Tablas!E145) -> 225 | E34: =+IF($B$1=FALSE,0,Tablas!F145) -> 225 | F34: =+IF($B$1=FALSE,0,Tablas!G145) -> 225 | G34: =+IF($B$1=FALSE,0,Tablas!H145) -> 225
A35: Rider: Trasplante Organos | B35: n/a | C35: =IF($C$1=FALSE,0,Tablas!D146) -> 300 | D35: =IF($C$1=FALSE,0,Tablas!E146) -> 300 | E35: =IF($C$1=FALSE,0,Tablas!F146) -> 300 | F35: =IF($C$1=FALSE,0,Tablas!G146) -> 300 | G35: =IF($C$1=FALSE,0,Tablas!H146) -> 300
A36: TOTAL PRIMA NETA | B36: n/a | C36: =SUM(C31:C35) -> 22765.05 | D36: 16572.925 | E36: 12995.75 | F36: 10707.875 | G36: 8044.975
A37: Costo Administrativo Annual | B37: n/a | C37: 75 | D37: 75 | E37: 75 | F37: 75 | G37: 75
A38: IVA (12%) | B38: n/a | C38: =SUM(C36:C37)*'INGRESO DE DATOS'!$S$19 -> 2740.806 | D38: =SUM(D36:D37)*'INGRESO DE DATOS'!$S$19 -> 1997.751 | E38: =SUM(E36:E37)*'INGRESO DE DATOS'!$S$19 -> 1568.49 | F38: =SUM(F36:F37)*'INGRESO DE DATOS'!$S$19 -> 1293.945 | G38: =SUM(G36:G37)*'INGRESO DE DATOS'!$S$19 -> 974.397
A39: GRAN TOTAL : | B39: n/a | C39: =SUM(C36:C38) -> 25580.856 | D39: =SUM(D36:D38) -> 18645.676 | E39: =SUM(E36:E38) -> 14639.24 | F39: =SUM(F36:F38) -> 12076.82 | G39: =SUM(G36:G38) -> 9094.372
A42: TARIFAS SEMESTRALES
A43: Prima de Titular | B43: n/a | C43: =VLOOKUP($B$19,Tablas!$A$152:$H$175,4,TRUE) -> 5723.47 | D43: =VLOOKUP($B$19,Tablas!$A$152:$H$175,5,TRUE) -> 4688.38 | E43: =VLOOKUP($B$19,Tablas!$A$152:$H$175,6,TRUE) -> 3466.2 | F43: =VLOOKUP($B$19,Tablas!$A$152:$H$175,7,TRUE) -> 2907.58 | G43: =VLOOKUP($B$19,Tablas!$A$152:$H$175,8,TRUE) -> 2208.51
A44: Prima de Cónyuge | B44: n/a | C44: =IF($B$17=1,0,(VLOOKUP($G$19,Tablas!$A$152:$H$175,4,TRUE))) -> 8138.68 | D44: =IF($B$17=1,0,(VLOOKUP($G$19,Tablas!$A$152:$H$175,5,TRUE))) -> 7052.18 | E44: =IF($B$17=1,0,(VLOOKUP($G$19,Tablas!$A$152:$H$175,6,TRUE))) -> 5053.02 | F44: =IF($B$17=1,0,(VLOOKUP($G$19,Tablas!$A$152:$H$175,7,TRUE))) -> 4268.09 | G44: =IF($B$17=1,0,(VLOOKUP($G$19,Tablas!$A$152:$H$175,8,TRUE))) -> 3190.07
A45: Primas Hijos | B45: n/a | C45: =IF($G$17=0,0,(VLOOKUP($G$17,Tablas!$A$176:$H$178,4,TRUE))) -> 3699.4 | D45: =IF($G$17=0,0,(VLOOKUP($G$17,Tablas!$A$176:$H$178,5,TRUE))) -> 1927.08 | E45: =IF($G$17=0,0,(VLOOKUP($G$17,Tablas!$A$176:$H$178,6,TRUE))) -> 1684.34 | F45: =IF($G$17=0,0,(VLOOKUP($G$17,Tablas!$A$176:$H$178,7,TRUE))) -> 1407.15 | G45: =IF($G$17=0,0,(VLOOKUP($G$17,Tablas!$A$176:$H$178,8,TRUE))) -> 1032.44
A46: Rider: Complicaciones de Maternidad | B46: n/a | C46: =+IF($B$1=FALSE,0,Tablas!D179) -> 119.25 | D46: =+IF($B$1=FALSE,0,Tablas!E179) -> 119.25 | E46: =+IF($B$1=FALSE,0,Tablas!F179) -> 119.25 | F46: =+IF($B$1=FALSE,0,Tablas!G179) -> 119.25 | G46: =+IF($B$1=FALSE,0,Tablas!H179) -> 119.25
A47: Rider: Trasplante Organos | B47: n/a | C47: =IF($C$1=FALSE,0,Tablas!D180) -> 159 | D47: =IF($C$1=FALSE,0,Tablas!E180) -> 159 | E47: =IF($C$1=FALSE,0,Tablas!F180) -> 159 | F47: =IF($C$1=FALSE,0,Tablas!G180) -> 159 | G47: =IF($C$1=FALSE,0,Tablas!H180) -> 159
A48: TOTAL PRIMA NETA | B48: n/a | C48: =SUM(C43:C47) -> 17839.8 | D48: 13945.89 | E48: 10481.81 | F48: 8861.07 | G48: 6709.27
A49: Costo Administrativo Anual | B49: n/a | C49: 75 | D49: 75 | E49: 75 | F49: 75 | G49: 75
A50: IVA (12%) | B50: n/a | C50: =SUM(C48:C49)*'INGRESO DE DATOS'!$S$19 -> 2149.776 | D50: =SUM(D48:D49)*'INGRESO DE DATOS'!$S$19 -> 1682.5068 | E50: =SUM(E48:E49)*'INGRESO DE DATOS'!$S$19 -> 1266.8172 | F50: =SUM(F48:F49)*'INGRESO DE DATOS'!$S$19 -> 1072.3284 | G50: =SUM(G48:G49)*'INGRESO DE DATOS'!$S$19 -> 814.1124
A51: TOTAL (1ra Cuota) | B51: n/a | C51: =SUM(C48:C50) -> 20064.576 | D51: =SUM(D48:D50) -> 15703.3968 | E51: =SUM(E48:E50) -> 11823.6272 | F51: =SUM(F48:F50) -> 10008.3984 | G51: =SUM(G48:G50) -> 7598.3824
A52: TOTAL (2da Cuota) | B52: n/a | C52: =C51-C49*'INGRESO DE DATOS'!$T$19 -> 19980.576 | D52: =D51-D49*'INGRESO DE DATOS'!$T$19 -> 15619.3968 | E52: =E51-E49*'INGRESO DE DATOS'!$T$19 -> 11739.6272 | F52: =F51-F49*'INGRESO DE DATOS'!$T$19 -> 9924.3984 | G52: =G51-G49*'INGRESO DE DATOS'!$T$19 -> 7514.3824
A53: GRAN TOTAL | B53: n/a | C53: =SUM(C51:C52) -> 40045.152 | D53: =SUM(D51:D52) -> 31322.7936 | E53: 23563.2544 | F53: 19932.7968 | G53: 15112.7648
A56: TARIFAS TRIMESTRALES
A57: Prima de Titular | B57: n/a | C57: =VLOOKUP($B$19,Tablas!$A$187:$H$210,4,TRUE) -> 2969.725 | D57: =VLOOKUP($B$19,Tablas!$A$187:$H$210,5,TRUE) -> 2432.65 | E57: =VLOOKUP($B$19,Tablas!$A$187:$H$210,6,TRUE) -> 1798.5 | F57: =VLOOKUP($B$19,Tablas!$A$187:$H$210,7,TRUE) -> 1508.65 | G57: =VLOOKUP($B$19,Tablas!$A$187:$H$210,8,TRUE) -> 1145.925
A58: Prima de Cónyuge | B58: n/a | C58: =IF($B$17=1,0,(VLOOKUP($G$19,Tablas!$A$187:$H$210,4,TRUE))) -> 4222.9 | D58: =IF($B$17=1,0,(VLOOKUP($G$19,Tablas!$A$187:$H$210,5,TRUE))) -> 3659.15 | E58: =IF($B$17=1,0,(VLOOKUP($G$19,Tablas!$A$187:$H$210,6,TRUE))) -> 2621.85 | F58: =IF($B$17=1,0,(VLOOKUP($G$19,Tablas!$A$187:$H$210,7,TRUE))) -> 2214.575 | G58: =IF($B$17=1,0,(VLOOKUP($G$19,Tablas!$A$187:$H$210,8,TRUE))) -> 1655.225
A59: Primas Hijos | B59: n/a | C59: =IF($G$17=0,0,(VLOOKUP($G$17,Tablas!$A$211:$H$213,4,TRUE))) -> 1919.5 | D59: =IF($G$17=0,0,(VLOOKUP($G$17,Tablas!$A$211:$H$213,5,TRUE))) -> 999.9 | E59: =IF($G$17=0,0,(VLOOKUP($G$17,Tablas!$A$211:$H$213,6,TRUE))) -> 873.95 | F59: =IF($G$17=0,0,(VLOOKUP($G$17,Tablas!$A$211:$H$213,7,TRUE))) -> 730.125 | G59: =IF($G$17=0,0,(VLOOKUP($G$17,Tablas!$A$211:$H$213,8,TRUE))) -> 535.7
A60: Rider: Complicaciones de Maternidad | B60: n/a | C60: =+IF($B$1=FALSE,0,Tablas!D214) -> 61.875 | D60: =+IF($B$1=FALSE,0,Tablas!E214) -> 61.875 | E60: =+IF($B$1=FALSE,0,Tablas!F214) -> 61.875 | F60: =+IF($B$1=FALSE,0,Tablas!G214) -> 61.875 | G60: =+IF($B$1=FALSE,0,Tablas!H214) -> 61.875
A61: Rider: Trasplante Organos | B61: n/a | C61: =IF($C$1=FALSE,0,Tablas!D215) -> 82.5 | D61: =IF($C$1=FALSE,0,Tablas!E215) -> 82.5 | E61: =IF($C$1=FALSE,0,Tablas!F215) -> 82.5 | F61: =IF($C$1=FALSE,0,Tablas!G215) -> 82.5 | G61: =IF($C$1=FALSE,0,Tablas!H215) -> 82.5
A62: TOTAL PRIMA NETA | B62: n/a | C62: =SUM(C57:C61) -> 9256.5 | D62: 7236.075 | E62: 5438.675 | F62: 4597.725 | G62: 3481.225
A63: Costo Administrativo Anual | B63: n/a | C63: 75 | D63: 75 | E63: 75 | F63: 75 | G63: 75
A64: IVA (12%) | B64: n/a | C64: =SUM(C62:C63)*'INGRESO DE DATOS'!$S$19 -> 1119.78 | D64: =SUM(D62:D63)*'INGRESO DE DATOS'!$S$19 -> 877.329 | E64: =SUM(E62:E63)*'INGRESO DE DATOS'!$S$19 -> 661.641 | F64: =SUM(F62:F63)*'INGRESO DE DATOS'!$S$19 -> 560.727 | G64: =SUM(G62:G63)*'INGRESO DE DATOS'!$S$19 -> 426.747
A65: TOTAL (1ra Cuota) | B65: n/a | C65: =SUM(C62:C64) -> 10451.28 | D65: =SUM(D62:D64) -> 8188.404 | E65: 6175.316 | F65: 5233.452 | G65: 3982.972
A66: TOTAL (2da a 4ta Cuota) | B66: n/a | C66: =C65-C63*'INGRESO DE DATOS'!$T$19 -> 10367.28 | D66: =D65-D63*'INGRESO DE DATOS'!$T$19 -> 8104.404 | E66: =E65-E63*'INGRESO DE DATOS'!$T$19 -> 6091.316 | F66: =F65-F63*'INGRESO DE DATOS'!$T$19 -> 5149.452 | G66: =G65-G63*'INGRESO DE DATOS'!$T$19 -> 3898.972
A67: GRAN TOTAL | B67: n/a | C67: =C65+C66*3 -> 41553.12 | D67: =D65+D66*3 -> 32501.616 | E67: 24449.264 | F67: 20681.808 | G67: 15679.888
A69: Este presupuesto solamente tiene carácter informativo y en ningún momento expresa compromiso legal para suministrarle cobertura de seguro. La emisión de una póliza de seguro Bupa está sujeta a todas las evaluaciones de riesgo por parte de Bupa y a la recepción de todos los pagos de prima requeridos.

Sheet Bupa Essential Care
B1: FALSE | C1: TRUE | I1: RESUMEN DE BENEFICIOS | Q1: RESUMEN DE BENEFICIOS
A5: Cotización de Seguro Médico Internacional Bupa Essential Care Tarifas en US$ | Validas: 1 de enero de 2026 | G5: REGIÓN
G7: =IF('INGRESO DE DATOS'!W14="Guatemala","GUATEMALA",'INGRESO DE DATOS'!W14) -> GUATEMALA
A13: Nombre del asegurado principal | B13: =+'INGRESO DE DATOS'!$C$36 -> John Doe
A15: Broker/Agente | B15: =+'INGRESO DE DATOS'!$C$44 -> Agencia
A17: Número de Adultos en la Póliza | B17: =+'INGRESO DE DATOS'!$C$38 -> 2 | D17: Dependientes (menores de 24 años) | G17: =+'INGRESO DE DATOS'!$F$38 -> 2
D18: =IF('INGRESO DE DATOS'!$P$2=TRUE, "Cotización para dependiente de 24 años","") -> 
A19: Edad del Titular | B19: =+'INGRESO DE DATOS'!$C$40 -> 32 | D19: Edad del Cónyuge | G19: =+'INGRESO DE DATOS'!$F$40 -> 46
D21: Fecha de Cotización: | F21: =NOW() -> 2025-12-22T09:51:37.210
A25: DEdUCIBLES | B25: PLAN 1 | C25: PLAN 2 | D25: PLAN 3 | E25: PLAN 4 | F25: PLAN 5 | G25: PLAN 6
A26: Dentro del pais de residencia | B26: 250 | C26: 250 | D26: 1000 | E26: 5000 | F26: 10000 | G26: 20000
A27: Fuera del pais de residencia | B27: 1000 | C27: 5000 | D27: 10000 | E27: 5000 | F27: 10000 | G27: 20000
A30: TARIFAS ANUALES
A31: Prima de Titular | B31: =VLOOKUP($B$19,Tablas!$A$224:$H$286,3,TRUE) -> 2235.5 | C31: =VLOOKUP($B$19,Tablas!$A$224:$H$286,4,TRUE) -> 2150.5 | D31: =VLOOKUP($B$19,Tablas!$A$224:$H$286,5,TRUE) -> 1993.25 | E31: =VLOOKUP($B$19,Tablas!$A$224:$H$286,6,TRUE) -> 1413.55 | F31: =VLOOKUP($B$19,Tablas!$A$224:$H$286,7,TRUE) -> 1035.3 | G31: =VLOOKUP($B$19,Tablas!$A$224:$H$286,8,TRUE) -> 734.4
A32: Prima de Cónyuge | B32: =IF($B$17=1,0,(VLOOKUP($G$19,Tablas!$A$224:$H$286,3,TRUE))) -> 3398.3 | C32: =IF($B$17=1,0,(VLOOKUP($G$19,Tablas!$A$224:$H$286,4,TRUE))) -> 3267.4 | D32: =IF($B$17=1,0,(VLOOKUP($G$19,Tablas!$A$224:$H$286,5,TRUE))) -> 3030.25 | E32: =IF($B$17=1,0,(VLOOKUP($G$19,Tablas!$A$224:$H$286,6,TRUE))) -> 2145.4 | F32: =IF($B$17=1,0,(VLOOKUP($G$19,Tablas!$A$224:$H$286,7,TRUE))) -> 1510.45 | G32: =IF($B$17=1,0,(VLOOKUP($G$19,Tablas!$A$224:$H$286,8,TRUE))) -> 1055.7
A33: Primas Hijos | B33: =IF($G$17=0,0,(VLOOKUP($G$17,Tablas!$A$287:$H$289,3,TRUE))) -> 1136.45 | C33: =IF($G$17=0,0,(VLOOKUP($G$17,Tablas!$A$287:$H$289,4,TRUE))) -> 1093.1 | D33: =IF($G$17=0,0,(VLOOKUP($G$17,Tablas!$A$287:$H$289,5,TRUE))) -> 1012.35 | E33: =IF($G$17=0,0,(VLOOKUP($G$17,Tablas!$A$287:$H$289,6,TRUE))) -> 718.25 | F33: =IF($G$17=0,0,(VLOOKUP($G$17,Tablas!$A$287:$H$289,7,TRUE))) -> 599.25 | G33: =IF($G$17=0,0,(VLOOKUP($G$17,Tablas!$A$287:$H$289,8,TRUE))) -> 473.45
A34: Rider: Complicaciones de Maternidad | B34: =+IF($B$1=FALSE,0,Tablas!C290) -> 0 | C34: =+IF($B$1=FALSE,0,Tablas!D290) -> 0 | D34: =+IF($B$1=FALSE,0,Tablas!E290) -> 0 | E34: =+IF($B$1=FALSE,0,Tablas!F290) -> 0 | F34: =+IF($B$1=FALSE,0,Tablas!G290) -> 0 | G34: =+IF($B$1=FALSE,0,Tablas!H290) -> 0
A35: Rider: Trasplante Organos | B35: =+IF($C$1=FALSE,0,Tablas!C291) -> 300 | C35: =+IF($C$1=FALSE,0,Tablas!D291) -> 300 | D35: =+IF($C$1=FALSE,0,Tablas!E291) -> 300 | E35: =+IF($C$1=FALSE,0,Tablas!F291) -> 300 | F35: =+IF($C$1=FALSE,0,Tablas!G291) -> 300 | G35: =+IF($C$1=FALSE,0,Tablas!H291) -> 300
A36: TOTAL PRIMA NETA | B36: =SUM(B31:B35) -> 7070.25 | C36: 6811 | D36: 6335.85 | E36: 4577.2 | F36: 3445 | G36: 2563.55
A37: Costo Administrativo Annual | B37: 75 | C37: 75 | D37: 75 | E37: 75 | F37: 75 | G37: 75
A38: IVA (12%) | B38: =SUM(B36:B37)*'INGRESO DE DATOS'!$S$19 -> 857.43 | C38: =SUM(C36:C37)*'INGRESO DE DATOS'!$S$19 -> 826.32 | D38: =SUM(D36:D37)*'INGRESO DE DATOS'!$S$19 -> 769.302 | E38: =SUM(E36:E37)*'INGRESO DE DATOS'!$S$19 -> 558.264 | F38: =SUM(F36:F37)*'INGRESO DE DATOS'!$S$19 -> 422.4 | G38: =SUM(G36:G37)*'INGRESO DE DATOS'!$S$19 -> 316.626
A39: GRAN TOTAL : | B39: =SUM(B36:B38) -> 8002.68 | C39: =SUM(C36:C38) -> 7712.32 | D39: =SUM(D36:D38) -> 7180.152 | E39: 5210.464 | F39: 3942.4 | G39: 2955.176
A42: TARIFAS SEMESTRALES
A43: Prima de Titular | B43: =VLOOKUP($B$19,Tablas!$A$298:$H$360,3,TRUE) -> 1184.815 | C43: =VLOOKUP($B$19,Tablas!$A$298:$H$360,4,TRUE) -> 1139.765 | D43: =VLOOKUP($B$19,Tablas!$A$298:$H$360,5,TRUE) -> 1056.4225 | E43: =VLOOKUP($B$19,Tablas!$A$298:$H$360,6,TRUE) -> 749.1815 | F43: =VLOOKUP($B$19,Tablas!$A$298:$H$360,7,TRUE) -> 548.709 | G43: =VLOOKUP($B$19,Tablas!$A$298:$H$360,8,TRUE) -> 389.232
A44: Prima de Cónyuge | B44: =IF($B$17=1,0,(VLOOKUP($G$19,Tablas!$A$298:$H$360,3,TRUE))) -> 1801.099 | C44: =IF($B$17=1,0,(VLOOKUP($G$19,Tablas!$A$298:$H$360,4,TRUE))) -> 1731.722 | D44: =IF($B$17=1,0,(VLOOKUP($G$19,Tablas!$A$298:$H$360,5,TRUE))) -> 1606.0325 | E44: =IF($B$17=1,0,(VLOOKUP($G$19,Tablas!$A$298:$H$360,6,TRUE))) -> 1137.062 | F44: =IF($B$17=1,0,(VLOOKUP($G$19,Tablas!$A$298:$H$360,7,TRUE))) -> 800.5385 | G44: =IF($B$17=1,0,(VLOOKUP($G$19,Tablas!$A$298:$H$360,8,TRUE))) -> 559.521
A45: Primas Hijos | B45: =IF($G$17=0,0,(VLOOKUP($G$17,Tablas!$A$361:$H$363,3,TRUE))) -> 602.3185 | C45: =IF($G$17=0,0,(VLOOKUP($G$17,Tablas!$A$361:$H$363,4,TRUE))) -> 579.343 | D45: =IF($G$17=0,0,(VLOOKUP($G$17,Tablas!$A$361:$H$363,5,TRUE))) -> 536.5455 | E45: =IF($G$17=0,0,(VLOOKUP($G$17,Tablas!$A$361:$H$363,6,TRUE))) -> 380.6725 | F45: =IF($G$17=0,0,(VLOOKUP($G$17,Tablas!$A$361:$H$363,7,TRUE))) -> 317.6025 | G45: =IF($G$17=0,0,(VLOOKUP($G$17,Tablas!$A$361:$H$363,8,TRUE))) -> 250.9285
A46: Rider: Complicaciones de Maternidad | B46: =+IF($B$1=FALSE,0,Tablas!C364) -> 0 | C46: =+IF($B$1=FALSE,0,Tablas!D364) -> 0 | D46: =+IF($B$1=FALSE,0,Tablas!E364) -> 0 | E46: =+IF($B$1=FALSE,0,Tablas!F364) -> 0 | F46: =+IF($B$1=FALSE,0,Tablas!G364) -> 0 | G46: =+IF($B$1=FALSE,0,Tablas!H364) -> 0
A47: Rider: Trasplante Organos | B47: =+IF($C$1=FALSE,0,Tablas!C365) -> 159 | C47: =+IF($C$1=FALSE,0,Tablas!D365) -> 159 | D47: =+IF($C$1=FALSE,0,Tablas!E365) -> 159 | E47: =+IF($C$1=FALSE,0,Tablas!F365) -> 159 | F47: =+IF($C$1=FALSE,0,Tablas!G365) -> 159 | G47: =+IF($C$1=FALSE,0,Tablas!H365) -> 159
A48: TOTAL PRIMA NETA | B48: =SUM(B43:B47) -> 3747.2325 | C48: 3609.83 | D48: 3358.0005 | E48: 2425.916 | F48: 1825.85 | G48: 1358.6815
A49: Costo Administrativo Anual | B49: 75 | C49: 75 | D49: 75 | E49: 75 | F49: 75 | G49: 75
A50: IVA (12%) | B50: =SUM(B48:B49)*'INGRESO DE DATOS'!$S$19 -> 458.6679 | C50: =SUM(C48:C49)*'INGRESO DE DATOS'!$S$19 -> 442.1796 | D50: =SUM(D48:D49)*'INGRESO DE DATOS'!$S$19 -> 411.96006 | E50: =SUM(E48:E49)*'INGRESO DE DATOS'!$S$19 -> 300.10992 | F50: =SUM(F48:F49)*'INGRESO DE DATOS'!$S$19 -> 228.102 | G50: =SUM(G48:G49)*'INGRESO DE DATOS'!$S$19 -> 172.04178
A51: TOTAL (1ra Cuota) | B51: =SUM(B48:B50) -> 4280.9004 | C51: =SUM(C48:C50) -> 4127.0096 | D51: =SUM(D48:D50) -> 3844.96056 | E51: 2801.02592 | F51: 2128.952 | G51: 1605.72328
A52: TOTAL (2da Cuota) | B52: =B51-B49*'INGRESO DE DATOS'!$T$19 -> 4196.9004 | C52: =C51-C49*'INGRESO DE DATOS'!$T$19 -> 4043.0096 | D52: =D51-D49*'INGRESO DE DATOS'!$T$19 -> 3760.96056 | E52: =E51-E49*'INGRESO DE DATOS'!$T$19 -> 2717.02592 | F52: =F51-F49*'INGRESO DE DATOS'!$T$19 -> 2044.952 | G52: =G51-G49*'INGRESO DE DATOS'!$T$19 -> 1521.72328
A53: GRAN TOTAL | B53: =SUM(B51:B52) -> 8477.8008 | C53: =SUM(C51:C52) -> 8170.0192 | D53: =SUM(D51:D52) -> 7605.92112 | E53: 5518.05184 | F53: 4173.904 | G53: 3127.44656
A56: TARIFAS TRIMESTRALES
A57: Prima de Titular | B57: =VLOOKUP($B$19,Tablas!$A$373:$H$435,3,TRUE) -> 614.7625 | C57: =VLOOKUP($B$19,Tablas!$A$373:$H$435,4,TRUE) -> 591.3875 | D57: =VLOOKUP($B$19,Tablas!$A$373:$H$435,5,TRUE) -> 548.14375 | E57: =VLOOKUP($B$19,Tablas!$A$373:$H$435,6,TRUE) -> 388.72625 | F57: =VLOOKUP($B$19,Tablas!$A$373:$H$435,7,TRUE) -> 284.7075 | G57: =VLOOKUP($B$19,Tablas!$A$373:$H$435,8,TRUE) -> 201.96
A58: Prima de Cónyuge | B58: =IF($B$17=1,0,(VLOOKUP($G$19,Tablas!$A$373:$H$435,3,TRUE))) -> 934.5325 | C58: =IF($B$17=1,0,(VLOOKUP($G$19,Tablas!$A$373:$H$435,4,TRUE))) -> 898.535 | D58: =IF($B$17=1,0,(VLOOKUP($G$19,Tablas!$A$373:$H$435,5,TRUE))) -> 833.31875 | E58: =IF($B$17=1,0,(VLOOKUP($G$19,Tablas!$A$373:$H$435,6,TRUE))) -> 589.985 | F58: =IF($B$17=1,0,(VLOOKUP($G$19,Tablas!$A$373:$H$435,7,TRUE))) -> 415.37375 | G58: =IF($B$17=1,0,(VLOOKUP($G$19,Tablas!$A$373:$H$435,8,TRUE))) -> 290.3175
A59: Primas Hijos | B59: =IF($G$17=0,0,(VLOOKUP($G$17,Tablas!$A$436:$H$438,3,TRUE))) -> 312.52375 | C59: =IF($G$17=0,0,(VLOOKUP($G$17,Tablas!$A$436:$H$438,4,TRUE))) -> 300.6025 | D59: =IF($G$17=0,0,(VLOOKUP($G$17,Tablas!$A$436:$H$438,5,TRUE))) -> 278.39625 | E59: =IF($G$17=0,0,(VLOOKUP($G$17,Tablas!$A$436:$H$438,6,TRUE))) -> 197.51875 | F59: =IF($G$17=0,0,(VLOOKUP($G$17,Tablas!$A$436:$H$438,7,TRUE))) -> 164.79375 | G59: =IF($G$17=0,0,(VLOOKUP($G$17,Tablas!$A$436:$H$438,8,TRUE))) -> 130.19875
A60: Rider: Complicaciones de Maternidad | B60: =+IF($B$1=FALSE,0,Tablas!C439) -> 0 | C60: =+IF($B$1=FALSE,0,Tablas!D439) -> 0 | D60: =+IF($B$1=FALSE,0,Tablas!E439) -> 0 | E60: =+IF($B$1=FALSE,0,Tablas!F439) -> 0 | F60: =+IF($B$1=FALSE,0,Tablas!G439) -> 0 | G60: =+IF($B$1=FALSE,0,Tablas!H439) -> 0
A61: Rider: Trasplante Organos | B61: =+IF($C$1=FALSE,0,Tablas!C440) -> 82.5 | C61: =+IF($C$1=FALSE,0,Tablas!D440) -> 82.5 | D61: =+IF($C$1=FALSE,0,Tablas!E440) -> 82.5 | E61: =+IF($C$1=FALSE,0,Tablas!F440) -> 82.5 | F61: =+IF($C$1=FALSE,0,Tablas!G440) -> 82.5 | G61: =+IF($C$1=FALSE,0,Tablas!H440) -> 82.5
A62: TOTAL PRIMA NETA | B62: =SUM(B57:B61) -> 1944.31875 | C62: =SUM(C57:C61) -> 1873.025 | D62: 1742.35875 | E62: 1258.73 | F62: 947.375 | G62: 704.97625
A63: Costo Administrativo Anual | B63: 75 | C63: 75 | D63: 75 | E63: 75 | F63: 75 | G63: 75
A64: IVA(12%) | B64: =SUM(B62:B63)*'INGRESO DE DATOS'!$S$19 -> 242.31825 | C64: =SUM(C62:C63)*'INGRESO DE DATOS'!$S$19 -> 233.763 | D64: =SUM(D62:D63)*'INGRESO DE DATOS'!$S$19 -> 218.08305 | E64: =SUM(E62:E63)*'INGRESO DE DATOS'!$S$19 -> 160.0476 | F64: =SUM(F62:F63)*'INGRESO DE DATOS'!$S$19 -> 122.685 | G64: =SUM(G62:G63)*'INGRESO DE DATOS'!$S$19 -> 93.59715
A65: TOTAL (1ra Cuota) | B65: =SUM(B62:B64) -> 2261.637 | C65: =SUM(C62:C64) -> 2181.788 | D65: =SUM(D62:D64) -> 2035.4418 | E65: 1493.7776 | F65: 1145.06 | G65: 873.5734
A66: TOTAL (2da a 4ta Cuota) | B66: =B65-B63*'INGRESO DE DATOS'!$T$19 -> 2177.637 | C66: =C65-C63*'INGRESO DE DATOS'!$T$19 -> 2097.788 | D66: =D65-D63*'INGRESO DE DATOS'!$T$19 -> 1951.4418 | E66: =E65-E63*'INGRESO DE DATOS'!$T$19 -> 1409.7776 | F66: =F65-F63*'INGRESO DE DATOS'!$T$19 -> 1061.06 | G66: =G65-G63*'INGRESO DE DATOS'!$T$19 -> 789.5734
A67: GRAN TOTAL | B67: =B65+B66*3 -> 8794.548 | C67: =C65+C66*3 -> 8475.152 | D67: 7889.7672 | E67: 5723.1104 | F67: 4328.24 | G67: 3242.2936
A71: Este presupuesto solamente tiene carácter informativo y en ningún momento expresa compromiso legal para suministrarle cobertura de seguro. La emisión de una póliza de seguro Bupa está sujeta a todas las evaluaciones de riesgo por parte de Bupa y a la recepción de todos los pagos de prima requeridos.

Sheet Bupa Classic Care
B1: FALSE | C1: FALSE | I1: RESUMEN DE BENEFICIOS | Q1: RESUMEN DE BENEFICIOS
B2: FALSE
A5: Cotización de Seguro Médico Internacional Bupa Classic Care Tarifas en US$ | Validas: 1 de enero de 2026 | G5: REGIÓN
G7: =IF('INGRESO DE DATOS'!W14="Guatemala","GUATEMALA",'INGRESO DE DATOS'!W14) -> GUATEMALA
A13: Nombre del asegurado principal | B13: =+'INGRESO DE DATOS'!$C$36 -> John Doe
A15: Broker/Agente | B15: =+'INGRESO DE DATOS'!$C$44 -> Agencia
A17: Número de Adultos en la Póliza | B17: =+'INGRESO DE DATOS'!$C$38 -> 2 | D17: Dependientes (menores de 24 años) | G17: =+'INGRESO DE DATOS'!$F$38 -> 2
D18: =IF('INGRESO DE DATOS'!$P$2=TRUE, "Cotización para dependiente de 24 años","") -> 
A19: Edad del Titular | B19: =+'INGRESO DE DATOS'!$C$40 -> 32 | D19: Edad del Cónyuge | G19: =+'INGRESO DE DATOS'!$F$40 -> 46
D23: Fecha de Cotización: | F23: =NOW() -> 2025-12-22T09:51:37.210
A27: DEdUCIBLES | B27: PLAN 1 | C27: PLAN 2 | D27: PLAN 3 | E27: PLAN 4 | F27: PLAN 5 | G27: PLAN 6
A28: Dentro del pais de residencia | B28: n/a | C28: 1000 | D28: 2000 | E28: 5000 | F28: 10000 | G28: 20000
A29: Fuera del pais de residencia | B29: n/a | C29: 2000 | D29: 3000 | E29: 5000 | F29: 10000 | G29: 20000
A32: TARIFAS ANUALES
A33: Prima de Titular | B33: n/a | C33: =VLOOKUP($B$19,Tablas!$A$452:$H$514,4,TRUE) -> 5214.55 | D33: =VLOOKUP($B$19,Tablas!$A$452:$H$514,5,TRUE) -> 4294 | E33: =VLOOKUP($B$19,Tablas!$A$452:$H$514,6,TRUE) -> 2773.05 | F33: =VLOOKUP($B$19,Tablas!$A$452:$H$514,7,TRUE) -> 1975.05 | G33: =VLOOKUP($B$19,Tablas!$A$452:$H$514,8,TRUE) -> 1405.05
A34: Prima de Cónyuge | B34: n/a | C34: =IF($B$17=1,0,(VLOOKUP($G$19,Tablas!$A$452:$H$514,4,TRUE))) -> 7498.35 | D34: =IF($B$17=1,0,(VLOOKUP($G$19,Tablas!$A$452:$H$514,5,TRUE))) -> 6417.25 | E34: =IF($B$17=1,0,(VLOOKUP($G$19,Tablas!$A$452:$H$514,6,TRUE))) -> 4213.25 | F34: =IF($B$17=1,0,(VLOOKUP($G$19,Tablas!$A$452:$H$514,7,TRUE))) -> 2887.05 | G34: =IF($B$17=1,0,(VLOOKUP($G$19,Tablas!$A$452:$H$514,8,TRUE))) -> 2015.9
A35: Primas Hijos | B35: n/a | C35: =IF($G$17=0,0,(VLOOKUP($G$17,Tablas!$A$515:$H$517,4,TRUE))) -> 3485.55 | D35: =IF($G$17=0,0,(VLOOKUP($G$17,Tablas!$A$515:$H$517,5,TRUE))) -> 1808.8 | E35: =IF($G$17=0,0,(VLOOKUP($G$17,Tablas!$A$515:$H$517,6,TRUE))) -> 1409.8 | F35: =IF($G$17=0,0,(VLOOKUP($G$17,Tablas!$A$515:$H$517,7,TRUE))) -> 994.65 | G35: =IF($G$17=0,0,(VLOOKUP($G$17,Tablas!$A$515:$H$517,8,TRUE))) -> 688.75
A36: Rider: Complicaciones de Maternidad | B36: n/a | C36: =+IF($B$1=FALSE,0,Tablas!D518) -> 0 | D36: =+IF($B$1=FALSE,0,Tablas!E518) -> 0 | E36: =+IF($B$1=FALSE,0,Tablas!F518) -> 0 | F36: =+IF($B$1=FALSE,0,Tablas!G518) -> 0 | G36: =+IF($B$1=FALSE,0,Tablas!H518) -> 0
A37: Rider: Trasplante Organos | B37: n/a | C37: =IF($C$1=FALSE,0,Tablas!D519) -> 0 | D37: =IF($C$1=FALSE,0,Tablas!E519) -> 0 | E37: =IF($C$1=FALSE,0,Tablas!F519) -> 0 | F37: =IF($C$1=FALSE,0,Tablas!G519) -> 0 | G37: =IF($C$1=FALSE,0,Tablas!H519) -> 0
A38: Rider: Eliminación de Deducible | B38: n/a | C38: =IF($B$2=FALSE,0,Tablas!D520) -> 0 | D38: =IF($B$2=FALSE,0,Tablas!E520) -> 0 | E38: =IF($B$2=FALSE,0,Tablas!F520) -> 0 | F38: =IF($B$2=FALSE,0,Tablas!G520) -> 0 | G38: =IF($B$2=FALSE,0,Tablas!H520) -> 0
A39: TOTAL PRIMA NETA | B39: n/a | C39: =SUM(C33:C38) -> 16198.45 | D39: 12520.05 | E39: 8396.1 | F39: 5856.75 | G39: 4109.7
A40: Costo Administrativo Annual | B40: n/a | C40: 75 | D40: 75 | E40: 75 | F40: 75 | G40: 75
A41: IVA (12%) | B41: n/a | C41: =SUM(C39:C40)*'INGRESO DE DATOS'!$S$19 -> 1952.814 | D41: =SUM(D39:D40)*'INGRESO DE DATOS'!$S$19 -> 1511.406 | E41: =SUM(E39:E40)*'INGRESO DE DATOS'!$S$19 -> 1016.532 | F41: =SUM(F39:F40)*'INGRESO DE DATOS'!$S$19 -> 711.81 | G41: =SUM(G39:G40)*'INGRESO DE DATOS'!$S$19 -> 502.164
A42: GRAN TOTAL : | B42: n/a | C42: =SUM(C39:C41) -> 18226.264 | D42: =SUM(D39:D41) -> 14106.456 | E42: =SUM(E39:E41) -> 9487.632 | F42: =SUM(F39:F41) -> 6643.56 | G42: =SUM(G39:G41) -> 4686.864
A45: TARIFAS SEMESTRALES
A46: Prima de Titular | B46: n/a | C46: =VLOOKUP($B$19,Tablas!$A$526:$H$588,4,TRUE) -> 2763.7115 | D46: =VLOOKUP($B$19,Tablas!$A$526:$H$588,5,TRUE) -> 2275.82 | E46: =VLOOKUP($B$19,Tablas!$A$526:$H$588,6,TRUE) -> 1469.7165 | F46: =VLOOKUP($B$19,Tablas!$A$526:$H$588,7,TRUE) -> 1046.7765 | G46: =VLOOKUP($B$19,Tablas!$A$526:$H$588,8,TRUE) -> 744.6765
A47: Prima de Cónyuge | B47: n/a | C47: =IF($B$17=1,0,(VLOOKUP($G$19,Tablas!$A$526:$H$588,4,TRUE))) -> 3974.1255 | D47: =IF($B$17=1,0,(VLOOKUP($G$19,Tablas!$A$526:$H$588,5,TRUE))) -> 3401.1425 | E47: =IF($B$17=1,0,(VLOOKUP($G$19,Tablas!$A$526:$H$588,6,TRUE))) -> 2233.0225 | F47: =IF($B$17=1,0,(VLOOKUP($G$19,Tablas!$A$526:$H$588,7,TRUE))) -> 1530.1365 | G47: =IF($B$17=1,0,(VLOOKUP($G$19,Tablas!$A$526:$H$588,8,TRUE))) -> 1068.427
A48: Primas Hijos | B48: n/a | C48: =IF($G$17=0,0,(VLOOKUP($G$17,Tablas!$A$589:$H$591,4,TRUE))) -> 1847.3415 | D48: =IF($G$17=0,0,(VLOOKUP($G$17,Tablas!$A$589:$H$591,5,TRUE))) -> 958.664 | E48: =IF($G$17=0,0,(VLOOKUP($G$17,Tablas!$A$589:$H$591,6,TRUE))) -> 747.194 | F48: =IF($G$17=0,0,(VLOOKUP($G$17,Tablas!$A$589:$H$591,7,TRUE))) -> 527.1645 | G48: =IF($G$17=0,0,(VLOOKUP($G$17,Tablas!$A$589:$H$591,8,TRUE))) -> 365.0375
A49: Rider: Complicaciones de Maternidad | B49: n/a | C49: =+IF($B$1=FALSE,0,Tablas!D592) -> 0 | D49: =+IF($B$1=FALSE,0,Tablas!E592) -> 0 | E49: =+IF($B$1=FALSE,0,Tablas!F592) -> 0 | F49: =+IF($B$1=FALSE,0,Tablas!G592) -> 0 | G49: =+IF($B$1=FALSE,0,Tablas!H592) -> 0
A50: Rider: Trasplante Organos | B50: n/a | C50: =IF($C$1=FALSE,0,Tablas!D593) -> 0 | D50: =IF($C$1=FALSE,0,Tablas!E593) -> 0 | E50: =IF($C$1=FALSE,0,Tablas!F593) -> 0 | F50: =IF($C$1=FALSE,0,Tablas!G593) -> 0 | G50: =IF($C$1=FALSE,0,Tablas!H593) -> 0
A51: Rider: Eliminación de Deducible | B51: n/a | C51: =IF($B$2=FALSE,0,Tablas!D594) -> 0 | D51: =IF($B$2=FALSE,0,Tablas!E594) -> 0 | E51: =IF($B$2=FALSE,0,Tablas!F594) -> 0 | F51: =IF($B$2=FALSE,0,Tablas!G594) -> 0 | G51: =IF($B$2=FALSE,0,Tablas!H594) -> 0
A52: TOTAL PRIMA NETA | B52: n/a | C52: =SUM(C46:C51) -> 8585.1785 | D52: 6635.6265 | E52: 4449.933 | F52: 3104.0775 | G52: 2178.141
A53: Costo Administrativo Anual | B53: n/a | C53: 75 | D53: 75 | E53: 75 | F53: 75 | G53: 75
A54: IVA (12%) | B54: n/a | C54: =SUM(C52:C53)*'INGRESO DE DATOS'!$S$19 -> 1039.22142 | D54: =SUM(D52:D53)*'INGRESO DE DATOS'!$S$19 -> 805.27518 | E54: =SUM(E52:E53)*'INGRESO DE DATOS'!$S$19 -> 542.99196 | F54: =SUM(F52:F53)*'INGRESO DE DATOS'!$S$19 -> 381.4893 | G54: =SUM(G52:G53)*'INGRESO DE DATOS'!$S$19 -> 270.37692
A55: TOTAL (1ra Cuota) | B55: n/a | C55: =SUM(C52:C54) -> 9699.39992 | D55: =SUM(D52:D54) -> 7515.90168 | E55: 5067.92496 | F55: 3560.5668 | G55: 2523.51792
A56: TOTAL (2da Cuota) | B56: n/a | C56: =C55-C53*'INGRESO DE DATOS'!$T$19 -> 9615.39992 | D56: =D55-D53*'INGRESO DE DATOS'!$T$19 -> 7431.90168 | E56: =E55-E53*'INGRESO DE DATOS'!$T$19 -> 4983.92496 | F56: =F55-F53*'INGRESO DE DATOS'!$T$19 -> 3476.5668 | G56: =G55-G53*'INGRESO DE DATOS'!$T$19 -> 2439.51792
A57: GRAN TOTAL | B57: n/a | C57: =SUM(C55:C56) -> 19314.79984 | D57: =SUM(D55:D56) -> 14947.80336 | E57: 10051.84992 | F57: 7037.1336 | G57: 4963.03584
A60: TARIFAS TRIMESTRALES
A61: Prima de Titular | B61: n/a | C61: =VLOOKUP($B$19,Tablas!$A$600:$H$662,4,TRUE) -> 1434.00125 | D61: =VLOOKUP($B$19,Tablas!$A$600:$H$662,5,TRUE) -> 1180.85 | E61: =VLOOKUP($B$19,Tablas!$A$600:$H$662,6,TRUE) -> 762.58875 | F61: =VLOOKUP($B$19,Tablas!$A$600:$H$662,7,TRUE) -> 543.13875 | G61: =VLOOKUP($B$19,Tablas!$A$600:$H$662,8,TRUE) -> 386.38875
A62: Prima de Cónyuge | B62: n/a | C62: =IF($B$17=1,0,(VLOOKUP($G$19,Tablas!$A$600:$H$662,4,TRUE))) -> 2062.04625 | D62: =IF($B$17=1,0,(VLOOKUP($G$19,Tablas!$A$600:$H$662,5,TRUE))) -> 1764.74375 | E62: =IF($B$17=1,0,(VLOOKUP($G$19,Tablas!$A$600:$H$662,6,TRUE))) -> 1158.64375 | F62: =IF($B$17=1,0,(VLOOKUP($G$19,Tablas!$A$600:$H$662,7,TRUE))) -> 793.93875 | G62: =IF($B$17=1,0,(VLOOKUP($G$19,Tablas!$A$600:$H$662,8,TRUE))) -> 554.3725
A63: Primas Hijos | B63: n/a | C63: =IF($G$17=0,0,(VLOOKUP($G$17,Tablas!$A$663:$H$665,4,TRUE))) -> 958.52625 | D63: =IF($G$17=0,0,(VLOOKUP($G$17,Tablas!$A$663:$H$665,5,TRUE))) -> 497.42 | E63: =IF($G$17=0,0,(VLOOKUP($G$17,Tablas!$A$663:$H$665,6,TRUE))) -> 387.695 | F63: =IF($G$17=0,0,(VLOOKUP($G$17,Tablas!$A$663:$H$665,7,TRUE))) -> 273.52875 | G63: =IF($G$17=0,0,(VLOOKUP($G$17,Tablas!$A$663:$H$665,8,TRUE))) -> 189.40625
A64: Rider: Complicaciones de Maternidad | B64: n/a | C64: =+IF($B$1=FALSE,0,Tablas!D666) -> 0 | D64: =+IF($B$1=FALSE,0,Tablas!E666) -> 0 | E64: =+IF($B$1=FALSE,0,Tablas!F666) -> 0 | F64: =+IF($B$1=FALSE,0,Tablas!G666) -> 0 | G64: =+IF($B$1=FALSE,0,Tablas!H666) -> 0
A65: Rider: Trasplante Organos | B65: n/a | C65: =IF($C$1=FALSE,0,Tablas!D667) -> 0 | D65: =IF($C$1=FALSE,0,Tablas!E667) -> 0 | E65: =IF($C$1=FALSE,0,Tablas!F667) -> 0 | F65: =IF($C$1=FALSE,0,Tablas!G667) -> 0 | G65: =IF($C$1=FALSE,0,Tablas!H667) -> 0
A66: Rider: Eliminación de Deducible | B66: n/a | C66: =IF($B$2=FALSE,0,Tablas!D668) -> 0 | D66: =IF($B$2=FALSE,0,Tablas!E668) -> 0 | E66: =IF($B$2=FALSE,0,Tablas!F668) -> 0 | F66: =IF($B$2=FALSE,0,Tablas!G668) -> 0 | G66: =IF($B$2=FALSE,0,Tablas!H668) -> 0
A67: TOTAL PRIMA NETA | B67: n/a | C67: =SUM(C61:C66) -> 4454.57375 | D67: 3443.01375 | E67: 2308.9275 | F67: 1610.60625 | G67: 1130.1675
A68: Costo Administrativo Anual | B68: n/a | C68: 75 | D68: 75 | E68: 75 | F68: 75 | G68: 75
A69: IVA (12%) | B69: n/a | C69: =SUM(C67:C68)*'INGRESO DE DATOS'!$S$19 -> 543.54885 | D69: =SUM(D67:D68)*'INGRESO DE DATOS'!$S$19 -> 422.16165 | E69: =SUM(E67:E68)*'INGRESO DE DATOS'!$S$19 -> 286.0713 | F69: =SUM(F67:F68)*'INGRESO DE DATOS'!$S$19 -> 202.27275 | G69: =SUM(G67:G68)*'INGRESO DE DATOS'!$S$19 -> 144.6201
A70: TOTAL (1ra Cuota) | B70: n/a | C70: =SUM(C67:C69) -> 5073.1226 | D70: =SUM(D67:D69) -> 3940.1754 | E70: 2669.9988 | F70: 1887.879 | G70: 1349.7876
A71: TOTAL (2da a 4ta Cuota) | B71: n/a | C71: =C70-C68*'INGRESO DE DATOS'!$T$19 -> 4989.1226 | D71: =D70-D68*'INGRESO DE DATOS'!$T$19 -> 3856.1754 | E71: =E70-E68*'INGRESO DE DATOS'!$T$19 -> 2585.9988 | F71: =F70-F68*'INGRESO DE DATOS'!$T$19 -> 1803.879 | G71: =G70-G68*'INGRESO DE DATOS'!$T$19 -> 1265.7876
A72: GRAN TOTAL | B72: n/a | C72: =C70+C71*3 -> 20040.4904 | D72: =D70+D71*3 -> 15508.7016 | E72: =E70+E71*3 -> 10427.9952 | F72: 7299.516 | G72: 5147.1504
A75: Este presupuesto solamente tiene carácter informativo y en ningún momento expresa compromiso legal para suministrarle cobertura de seguro. La emisión de una póliza de seguro Bupa está sujeta a todas las evaluaciones de riesgo por parte de Bupa y a la recepción de todos los pagos de prima requeridos.

Sheet Resumen de Tarifas
A5: Cotización de Seguro Médico Internacional Resumen de Tarifas Tarifas en US$ | Validas: 1 de enero de 2026 | I5: REGIÓN
I7: =IF('INGRESO DE DATOS'!W14="Guatemala","GUATEMALA",'INGRESO DE DATOS'!W14) -> GUATEMALA
A13: Nombre del asegurado principal | B13: =+'INGRESO DE DATOS'!$C$36 -> John Doe
A15: Broker/Agente | B15: =+'INGRESO DE DATOS'!$C$44 -> Agencia
A17: Número de Adultos en la Póliza | B17: =+'INGRESO DE DATOS'!$C$38 -> 2 | F17: Dependientes (menores de 24 años) | I17: =+'INGRESO DE DATOS'!$F$38 -> 2
F18: =IF('INGRESO DE DATOS'!$P$2=TRUE, "Cotización para dependiente de 24 años","") -> 
A19: Edad del Titular | B19: =+'INGRESO DE DATOS'!$C$40 -> 32 | F19: Edad del Cónyuge | I19: =+'INGRESO DE DATOS'!$F$40 -> 46
A22: DEDUCIBLES | D22: PLAN 1 | E22: PLAN 2 | F22: PLAN 3 | G22: PLAN 4 | H22: PLAN 5 | I22: PLAN 6
A23: Dentro del pais de residencia | D23: n/a | E23: 1000 | F23: 2000 | G23: 5000 | H23: 10000 | I23: 20000
A24: Fuera del pais de residencia | D24: n/a | E24: 2000 | F24: 3000 | G24: 5000 | H24: 10000 | I24: 20000
A26: PRODUCTOS
A27: Bupa Complete Care
A28: Tarifas Anuales | D28: n/a | E28: ='Bupa Complete Care'!H42 -> 63586.88 | F28: ='Bupa Premium Care'!I46 -> 30746.24 | G28: ='Bupa Premium Care'!J46 -> 23884 | H28: ='Bupa Premium Care'!K46 -> 19237.12 | I28: ='Bupa Premium Care'!L46 -> 15139.04
A29: Tarifas Semestrales | D29: n/a | E29: ='Bupa Complete Care'!H56 -> 67397.0528 | F29: ='Bupa Complete Care'!I56 -> 48616.736 | G29: ='Bupa Complete Care'!J56 -> 36293.6 | H29: ='Bupa Complete Care'!K56 -> 27529.6896 | I29: ='Bupa Complete Care'!L56 -> 21052.3264
A30: Tarifas Trimestrales | D30: n/a | E30: ='Bupa Complete Care'!H69 -> 69937.168 | F30: ='Bupa Complete Care'!I69 -> 50448.16 | G30: ='Bupa Complete Care'!J69 -> 37660 | H30: ='Bupa Complete Care'!K69 -> 28565.376 | I30: ='Bupa Complete Care'!L69 -> 21843.584
A31: Bupa Premium Care
A32: Tarifas Anuales | D32: n/a | E32: ='Bupa Premium Care'!H46 -> 39597.6 | F32: ='Bupa Premium Care'!I46 -> 30746.24 | G32: ='Bupa Premium Care'!J46 -> 23884 | H32: ='Bupa Premium Care'!K46 -> 19237.12 | I32: ='Bupa Premium Care'!L46 -> 15139.04
A33: Tarifas Semestrales | D33: n/a | E33: ='Bupa Premium Care'!H61 -> 41968.416 | F33: ='Bupa Premium Care'!I61 -> 32585.9744 | G33: ='Bupa Premium Care'!J61 -> 25312 | H33: ='Bupa Premium Care'!K61 -> 20386.3072 | I33: ='Bupa Premium Care'!L61 -> 16042.3424
A34: Tarifas Trimestrales | D34: n/a | E34: ='Bupa Premium Care'!H76 -> 43548.96 | F34: ='Bupa Premium Care'!I76 -> 33812.464 | G34: ='Bupa Premium Care'!J76 -> 26264 | H34: ='Bupa Premium Care'!K76 -> 21152.432 | I34: ='Bupa Premium Care'!L76 -> 16644.544
A35: Bupa Secure Care
A36: Tarifas Anuales | D36: n/a | E36: ='Bupa Secure Care'!C39 -> 25580.856 | F36: ='Bupa Secure Care'!D39 -> 18645.676 | G36: ='Bupa Secure Care'!E39 -> 14639.24 | H36: ='Bupa Secure Care'!F39 -> 12076.82 | I36: ='Bupa Secure Care'!G39 -> 9094.372
A37: Tarifas Semestrales | D37: n/a | E37: ='Bupa Secure Care'!C53 -> 40045.152 | F37: ='Bupa Secure Care'!D53 -> 31322.7936 | G37: ='Bupa Secure Care'!E53 -> 23563.2544 | H37: ='Bupa Secure Care'!F53 -> 19932.7968 | I37: ='Bupa Secure Care'!G53 -> 15112.7648
A38: Tarifas Trimestrales | D38: n/a | E38: ='Bupa Secure Care'!C67 -> 41553.12 | F38: ='Bupa Secure Care'!D67 -> 32501.616 | G38: ='Bupa Secure Care'!E67 -> 24449.264 | H38: ='Bupa Secure Care'!F67 -> 20681.808 | I38: ='Bupa Secure Care'!G67 -> 15679.888
A39: Bupa Essential Care
A40: Tarifas Anuales | D40: n/a | E40: ='Bupa Essential Care'!C39 -> 7712.32 | F40: ='Bupa Essential Care'!D39 -> 7180.152 | G40: ='Bupa Essential Care'!E39 -> 5210.464 | H40: ='Bupa Essential Care'!F39 -> 3942.4 | I40: ='Bupa Essential Care'!G39 -> 2955.176
A41: Tarifas Semestrales | D41: n/a | E41: ='Bupa Essential Care'!C53 -> 8170.0192 | F41: ='Bupa Essential Care'!D53 -> 7605.92112 | G41: ='Bupa Essential Care'!E53 -> 5518.05184 | H41: ='Bupa Essential Care'!F53 -> 4173.904 | I41: ='Bupa Essential Care'!G53 -> 3127.44656
A42: Tarifas Trimestrales | D42: n/a | E42: ='Bupa Essential Care'!C67 -> 8475.152 | F42: ='Bupa Essential Care'!D67 -> 7889.7672 | G42: ='Bupa Essential Care'!E67 -> 5723.1104 | H42: ='Bupa Essential Care'!F67 -> 4328.24 | I42: ='Bupa Essential Care'!G67 -> 3242.2936
A43: Bupa Classic Care
A44: Tarifas Anuales | D44: n/a | E44: ='Bupa Classic Care'!C42 -> 18226.264 | F44: ='Bupa Classic Care'!D42 -> 14106.456 | G44: ='Bupa Classic Care'!E42 -> 9487.632 | H44: ='Bupa Classic Care'!F42 -> 6643.56 | I44: ='Bupa Classic Care'!G42 -> 4686.864
A45: Tarifas Semestrales | D45: n/a | E45: ='Bupa Classic Care'!C57 -> 19314.79984 | F45: ='Bupa Classic Care'!D57 -> 14947.80336 | G45: ='Bupa Classic Care'!E57 -> 10051.84992 | H45: ='Bupa Classic Care'!F57 -> 7037.1336 | I45: ='Bupa Classic Care'!G57 -> 4963.03584
A46: Tarifas Trimestrales | D46: n/a | E46: ='Bupa Classic Care'!C72 -> 20040.4904 | F46: ='Bupa Classic Care'!D72 -> 15508.7016 | G46: ='Bupa Classic Care'!E72 -> 10427.9952 | H46: ='Bupa Classic Care'!F72 -> 7299.516 | I46: ='Bupa Classic Care'!G72 -> 5147.1504

Sheet Comparacion de Beneficios (hidden)
A1: 2023 BUPA CARE COMPARACION DE BENEFICIOS

Sheet Tablas (hidden)
L1: Complete | M1: Premium | N1: Secure | O1: Essential | P1: Classic
B2: REGIÓN | C2: ='INGRESO DE DATOS'!W14 -> Guatemala | E2: FACTOR SEMESTRAL : | G2: 0.53 | I2: TOTAL DISCOUNT | K2: ='INGRESO DE DATOS'!O42 -> 1 | L2: ='INGRESO DE DATOS'!P42 -> 1 | M2: ='INGRESO DE DATOS'!Q42 -> 1 | N2: ='INGRESO DE DATOS'!R42 -> 1 | O2: ='INGRESO DE DATOS'!S42 -> 0.85 | P2: ='INGRESO DE DATOS'!T42 -> 0.95 | T2: Impuesto (14.94%) | V2: =14.94/100+1 -> 1.1494
E3: FACTOR TRIMESTRAL | G3: 0.275
A6: BUPA COMPLETE CARE
A7: TARIFAS ANUALES
A9: EDAD | C9: CW1 | D9: CW2 | E9: CW3 | F9: CW4 | G9: CW5 | H9: CW6
A10: 18 | B10: 18-24 | D10: =R10 -> 17504 | E10: =S10 -> 11991 | F10: 8420 | G10: 5816 | H10: 4447 | L10: =Guatemala!D9 -> 17504 | M10: =Guatemala!E9 -> 11991 | N10: =Guatemala!F9 -> 8420 | O10: =Guatemala!G9 -> 5816 | P10: =Guatemala!H9 -> 4447 | R10: =L10*$L$2 -> 17504 | S10: =M10*$L$2 -> 11991 | T10: 8420 | U10: 5816 | V10: 4447
A11: 25 | B11: 25-29 | D11: =R11 -> 18338 | E11: =S11 -> 13314 | F11: =T11 -> 9356 | G11: =U11 -> 6378 | H11: =V11 -> 4903 | L11: =Guatemala!D10 -> 18338 | M11: =Guatemala!E10 -> 13314 | N11: =Guatemala!F10 -> 9356 | O11: =Guatemala!G10 -> 6378 | P11: =Guatemala!H10 -> 4903 | R11: =L11*$L$2 -> 18338 | S11: =M11*$L$2 -> 13314 | T11: =N11*$L$2 -> 9356 | U11: =O11*$L$2 -> 6378 | V11: =P11*$L$2 -> 4903
A12: 30 | B12: 30-34 | D12: 19182 | E12: 14266 | F12: 10408 | G12: 7750 | H12: 5930 | L12: =Guatemala!D11 -> 19182 | M12: =Guatemala!E11 -> 14266 | N12: =Guatemala!F11 -> 10408 | O12: =Guatemala!G11 -> 7750 | P12: =Guatemala!H11 -> 5930 | R12: 19182 | S12: 14266 | T12: 10408 | U12: 7750 | V12: 5930
A13: 35 | B13: 35-39 | D13: 21460 | E13: 15947 | F13: 11686 | G13: 8656 | H13: 6611 | L13: =Guatemala!D12 -> 21460 | M13: =Guatemala!E12 -> 15947 | N13: =Guatemala!F12 -> 11686 | O13: =Guatemala!G12 -> 8656 | P13: =Guatemala!H12 -> 6611 | R13: 21460 | S13: 15947 | T13: 11686 | U13: 8656 | V13: 6611
A14: 40 | B14: 40-44 | D14: 24926 | E14: 17504 | F14: 12974 | G14: 9565 | H14: 7289 | L14: =Guatemala!D13 -> 24926 | M14: =Guatemala!E13 -> 17504 | N14: =Guatemala!F13 -> 12974 | O14: =Guatemala!G13 -> 9565 | P14: =Guatemala!H13 -> 7289 | R14: 24926 | S14: 17504 | T14: 12974 | U14: 9565 | V14: 7289
A15: 45 | B15: 45-49 | D15: 27808 | E15: 19540 | F15: 14487 | G15: 10704 | H15: 8201 | L15: =Guatemala!D14 -> 27808 | M15: =Guatemala!E14 -> 19540 | N15: =Guatemala!F14 -> 14487 | O15: =Guatemala!G14 -> 10704 | P15: =Guatemala!H14 -> 8201 | R15: 27808 | S15: 19540 | T15: 14487 | U15: 10704 | V15: 8201
A16: 50 | B16: 50-54 | D16: 36309 | E16: 25771 | F16: 19045 | G16: 15251 | H16: 11729 | L16: =Guatemala!D15 -> 36309 | M16: =Guatemala!E15 -> 25771 | N16: =Guatemala!F15 -> 19045 | O16: =Guatemala!G15 -> 15251 | P16: =Guatemala!H15 -> 11729 | R16: 36309 | S16: 25771 | T16: 19045 | U16: 15251 | V16: 11729
A17: 55 | B17: 55-59 | D17: 38703 | E17: 27444 | F17: 20328 | G17: 16272 | H17: 12408 | L17: =Guatemala!D16 -> 38703 | M17: =Guatemala!E16 -> 27444 | N17: =Guatemala!F16 -> 20328 | O17: =Guatemala!G16 -> 16272 | P17: =Guatemala!H16 -> 12408 | R17: 38703 | S17: 27444 | T17: 20328 | U17: 16272 | V17: 12408
A18: 60 | B18: 60 | D18: 42061 | E18: 29844 | F18: 23129 | G18: 19343 | H18: 15589 | L18: =Guatemala!D17 -> 42061 | M18: =Guatemala!E17 -> 29844 | N18: =Guatemala!F17 -> 23129 | O18: =Guatemala!G17 -> 19343 | P18: =Guatemala!H17 -> 15589 | R18: 42061 | S18: 29844 | T18: 23129 | U18: 19343 | V18: 15589
A19: 61 | B19: 61 | D19: 45173 | E19: 32004 | F19: 24763 | G19: 20823 | H19: 16729 | L19: =Guatemala!D18 -> 45173 | M19: =Guatemala!E18 -> 32004 | N19: =Guatemala!F18 -> 24763 | O19: =Guatemala!G18 -> 20823 | P19: =Guatemala!H18 -> 16729 | R19: 45173 | S19: 32004 | T19: 24763 | U19: 20823 | V19: 16729
A20: 62 | B20: 62 | D20: 49486 | E20: 34994 | F20: 27102 | G20: 22750 | H20: 18317 | L20: =Guatemala!D19 -> 49486 | M20: =Guatemala!E19 -> 34994 | N20: =Guatemala!F19 -> 27102 | O20: =Guatemala!G19 -> 22750 | P20: =Guatemala!H19 -> 18317 | R20: 49486 | S20: 34994 | T20: 27102 | U20: 22750 | V20: 18317
A21: 63 | B21: 63 | D21: 52601 | E21: 37267 | F21: 28853 | G21: 24234 | H21: 19455 | L21: =Guatemala!D20 -> 52601 | M21: =Guatemala!E20 -> 37267 | N21: =Guatemala!F20 -> 28853 | O21: =Guatemala!G20 -> 24234 | P21: =Guatemala!H20 -> 19455 | R21: 52601 | S21: 37267 | T21: 28853 | U21: 24234 | V21: 19455
A22: 64 | B22: 64 | D22: 56914 | E22: 40265 | F22: 31190 | G22: 26167 | H22: 21049 | L22: =Guatemala!D21 -> 56914 | M22: =Guatemala!E21 -> 40265 | N22: =Guatemala!F21 -> 31190 | O22: =Guatemala!G21 -> 26167 | P22: =Guatemala!H21 -> 21049 | R22: 56914 | S22: 40265 | T22: 31190 | U22: 26167 | V22: 21049
A23: 65 | B23: 65 | D23: 74408 | E23: 52601 | F23: 39476 | G23: 34922 | H23: 29687 | L23: =Guatemala!D22 -> 74408 | M23: =Guatemala!E22 -> 52601 | N23: =Guatemala!F22 -> 39476 | O23: =Guatemala!G22 -> 34922 | P23: =Guatemala!H22 -> 29687 | R23: 74408 | S23: 52601 | T23: 39476 | U23: 34922 | V23: 29687
A24: 66 | B24: 66 | D24: 86504 | E24: 61110 | F24: 45893 | G24: 40609 | H24: 34462 | L24: =Guatemala!D23 -> 86504 | M24: =Guatemala!E23 -> 61110 | N24: =Guatemala!F23 -> 45893 | O24: =Guatemala!G23 -> 40609 | P24: =Guatemala!H23 -> 34462 | R24: 86504 | S24: 61110 | T24: 45893 | U24: 40609 | V24: 34462
A25: 67 | B25: 67 | D25: 94410 | E25: 66741 | F25: 50095 | G25: 44358 | H25: 37650 | L25: =Guatemala!D24 -> 94410 | M25: =Guatemala!E24 -> 66741 | N25: =Guatemala!F24 -> 50095 | O25: =Guatemala!G24 -> 44358 | P25: =Guatemala!H24 -> 37650 | R25: 94410 | S25: 66741 | T25: 50095 | U25: 44358 | V25: 37650
A26: 68 | B26: 68 | D26: 104591 | E26: 73924 | F26: 55467 | G26: 49132 | H26: 41743 | L26: =Guatemala!D25 -> 104591 | M26: =Guatemala!E25 -> 73924 | N26: =Guatemala!F25 -> 55467 | O26: =Guatemala!G25 -> 49132 | P26: =Guatemala!H25 -> 41743 | R26: 104591 | S26: 73924 | T26: 55467 | U26: 49132 | V26: 41743
A27: 69 | B27: 69 | D27: 115015 | E27: 81236 | F27: 61073 | G27: 54022 | H27: 45831 | L27: =Guatemala!D26 -> 115015 | M27: =Guatemala!E26 -> 81236 | N27: =Guatemala!F26 -> 61073 | O27: =Guatemala!G26 -> 54022 | P27: =Guatemala!H26 -> 45831 | R27: 115015 | S27: 81236 | T27: 61073 | U27: 54022 | V27: 45831
A28: 70 | B28: 70 | D28: 141607 | E28: 98958 | F28: 71809 | G28: 62891 | H28: 53907 | L28: =Guatemala!D27 -> 141607 | M28: =Guatemala!E27 -> 98958 | N28: =Guatemala!F27 -> 71809 | O28: =Guatemala!G27 -> 62891 | P28: =Guatemala!H27 -> 53907 | R28: 141607 | S28: 98958 | T28: 71809 | U28: 62891 | V28: 53907
A29: 71 | B29: 71 | D29: 147118 | E29: 102799 | F29: 74618 | G29: 65394 | H29: 56068 | L29: =Guatemala!D28 -> 147118 | M29: =Guatemala!E28 -> 102799 | N29: =Guatemala!F28 -> 74618 | O29: =Guatemala!G28 -> 65394 | P29: =Guatemala!H28 -> 56068 | R29: 147118 | S29: 102799 | T29: 74618 | U29: 65394 | V29: 56068
A30: 72 | B30: 72 | D30: 151311 | E30: 105790 | F30: 76715 | G30: 67210 | H30: 57661 | L30: =Guatemala!D29 -> 151311 | M30: =Guatemala!E29 -> 105790 | N30: =Guatemala!F29 -> 76715 | O30: =Guatemala!G29 -> 67210 | P30: =Guatemala!H29 -> 57661 | R30: 151311 | S30: 105790 | T30: 76715 | U30: 67210 | V30: 57661
A31: 73 | B31: 73 | D31: 156823 | E31: 109628 | F31: 79523 | G31: 69709 | H31: 59820 | L31: =Guatemala!D30 -> 156823 | M31: =Guatemala!E30 -> 109628 | N31: =Guatemala!F30 -> 79523 | O31: =Guatemala!G30 -> 69709 | P31: =Guatemala!H30 -> 59820 | R31: 156823 | S31: 109628 | T31: 79523 | U31: 69709 | V31: 59820
A32: 74 | B32: 74 | D32: 159699 | E32: 111541 | F32: 81038 | G32: 70962 | H32: 60846 | L32: =Guatemala!D31 -> 159699 | M32: =Guatemala!E31 -> 111541 | N32: =Guatemala!F31 -> 81038 | O32: =Guatemala!G31 -> 70962 | P32: =Guatemala!H31 -> 60846 | R32: 159699 | S32: 111541 | T32: 81038 | U32: 70962 | V32: 60846
A33: 75 | B33: 75+ | D33: 166644 | E33: 116448 | F33: 84535 | G33: 74035 | H33: 63457 | L33: =Guatemala!D32 -> 166644 | M33: =Guatemala!E32 -> 116448 | N33: =Guatemala!F32 -> 84535 | O33: =Guatemala!G32 -> 74035 | P33: =Guatemala!H32 -> 63457 | R33: 166644 | S33: 116448 | T33: 84535 | U33: 74035 | V33: 63457
A34: 1 | B34: 1 Child | D34: 6117 | E34: 4438 | F34: 3394 | G34: 2849 | H34: 2051 | L34: =Guatemala!D33 -> 6117 | M34: =Guatemala!E33 -> 4438 | N34: =Guatemala!F33 -> 3394 | O34: =Guatemala!G33 -> 2849 | P34: =Guatemala!H33 -> 2051 | R34: 6117 | S34: 4438 | T34: 3394 | U34: 2849 | V34: 2051
A35: 2 | B35: 2 Children | D35: 9709 | E35: 7074 | F35: 5380 | G35: 4439 | H35: 3306 | L35: =Guatemala!D34 -> 9709 | M35: =Guatemala!E34 -> 7074 | N35: =Guatemala!F34 -> 5380 | O35: =Guatemala!G34 -> 4439 | P35: =Guatemala!H34 -> 3306 | R35: 9709 | S35: 7074 | T35: 5380 | U35: 4439 | V35: 3306
A36: 3 | B36: 3+ Children | D36: 14137 | E36: 10308 | F36: 7948 | G36: 6484 | H36: 4787 | L36: =Guatemala!D35 -> 14137 | M36: =Guatemala!E35 -> 10308 | N36: =Guatemala!F35 -> 7948 | O36: =Guatemala!G35 -> 6484 | P36: =Guatemala!H35 -> 4787 | R36: 14137 | S36: 10308 | T36: 7948 | U36: 6484 | V36: 4787
A37: 1 | B37: Rider Comp. Maternidad | D37: =L37 -> 0 | E37: =M37 -> 0 | F37: =N37 -> 225 | G37: =O37 -> 225 | H37: =P37 -> 225 | L37: 0 | M37: 0 | N37: 225 | O37: 225 | P37: 225
A38: 1 | B38: Transplante de organos | D38: 0 | E38: 0 | F38: 0 | G38: 0 | H38: 0 | L38: 0 | M38: 0 | N38: 0 | O38: 0 | P38: 0
D39: 0 | E39: 0 | F39: 0 | G39: 0 | H39: 0
A42: TARIFAS SEMESTRALES
A44: EDAD | C44: CW1 | D44: CW2 | E44: CW3 | F44: CW4 | G44: CW5 | H44: CW6
A45: 18 | B45: 18-24 | D45: =D10*$G$2 -> 9277.12 | E45: =E10*$G$2 -> 6355.23 | F45: 4462.6 | G45: 3082.48 | H45: =H10*$G$2 -> 2356.91
A46: 25 | B46: 25-29 | D46: =D11*$G$2 -> 9719.14 | E46: 7056.42 | F46: 4958.68 | G46: 3380.34 | H46: 2598.59
A47: 30 | B47: 30-34 | D47: =D12*$G$2 -> 10166.46 | E47: 7560.98 | F47: 5516.24 | G47: 4107.5 | H47: 3142.9
A48: 35 | B48: 35-39 | D48: =D13*$G$2 -> 11373.8 | E48: 8451.91 | F48: 6193.58 | G48: 4587.68 | H48: 3503.83
A49: 40 | B49: 40-44 | D49: =D14*$G$2 -> 13210.78 | E49: 9277.12 | F49: 6876.22 | G49: 5069.45 | H49: 3863.17
A50: 45 | B50: 45-49 | D50: =D15*$G$2 -> 14738.24 | E50: 10356.2 | F50: 7678.11 | G50: 5673.12 | H50: 4346.53
A51: 50 | B51: 50-54 | D51: =D16*$G$2 -> 19243.77 | E51: 13658.63 | F51: 10093.85 | G51: 8083.03 | H51: 6216.37
A52: 55 | B52: 55-59 | D52: =D17*$G$2 -> 20512.59 | E52: 14545.32 | F52: 10773.84 | G52: 8624.16 | H52: 6576.24
A53: 60 | B53: 60 | D53: =D18*$G$2 -> 22292.33 | E53: 15817.32 | F53: 12258.37 | G53: 10251.79 | H53: 8262.17
A54: 61 | B54: 61 | D54: =D19*$G$2 -> 23941.69 | E54: 16962.12 | F54: 13124.39 | G54: 11036.19 | H54: 8866.37
A55: 62 | B55: 62 | D55: =D20*$G$2 -> 26227.58 | E55: 18546.82 | F55: 14364.06 | G55: 12057.5 | H55: 9708.01
A56: 63 | B56: 63 | D56: =D21*$G$2 -> 27878.53 | E56: 19751.51 | F56: 15292.09 | G56: 12844.02 | H56: 10311.15
A57: 64 | B57: 64 | D57: =D22*$G$2 -> 30164.42 | E57: 21340.45 | F57: 16530.7 | G57: 13868.51 | H57: 11155.97
A58: 65 | B58: 65 | D58: =D23*$G$2 -> 39436.24 | E58: 27878.53 | F58: 20922.28 | G58: 18508.66 | H58: 15734.11
A59: 66 | B59: 66 | D59: =D24*$G$2 -> 45847.12 | E59: 32388.3 | F59: 24323.29 | G59: 21522.77 | H59: 18264.86
A60: 67 | B60: 67 | D60: =D25*$G$2 -> 50037.3 | E60: 35372.73 | F60: 26550.35 | G60: 23509.74 | H60: 19954.5
A61: 68 | B61: 68 | D61: =D26*$G$2 -> 55433.23 | E61: 39179.72 | F61: 29397.51 | G61: 26039.96 | H61: 22123.79
A62: 69 | B62: 69 | D62: =D27*$G$2 -> 60957.95 | E62: 43055.08 | F62: 32368.69 | G62: 28631.66 | H62: 24290.43
A63: 70 | B63: 70 | D63: =D28*$G$2 -> 75051.71 | E63: 52447.74 | F63: 38058.77 | G63: 33332.23 | H63: 28570.71
A64: 71 | B64: 71 | D64: =D29*$G$2 -> 77972.54 | E64: 54483.47 | F64: 39547.54 | G64: 34658.82 | H64: 29716.04
A65: 72 | B65: 72 | D65: =D30*$G$2 -> 80194.83 | E65: 56068.7 | F65: 40658.95 | G65: 35621.3 | H65: 30560.33
A66: 73 | B66: 73 | D66: =D31*$G$2 -> 83116.19 | E66: 58102.84 | F66: 42147.19 | G66: 36945.77 | H66: 31704.6
A67: 74 | B67: 74 | D67: =D32*$G$2 -> 84640.47 | E67: 59116.73 | F67: 42950.14 | G67: 37609.86 | H67: 32248.38
A68: 75 | B68: 75+ | D68: =D33*$G$2 -> 88321.32 | E68: 61717.44 | F68: 44803.55 | G68: 39238.55 | H68: 33632.21
A69: 1 | B69: 1 Child | D69: =D34*$G$2 -> 3242.01 | E69: 2352.14 | F69: 1798.82 | G69: 1509.97 | H69: 1087.03
A70: 2 | B70: 2 Children | D70: =D35*$G$2 -> 5145.77 | E70: 3749.22 | F70: 2851.4 | G70: 2352.67 | H70: 1752.18
A71: 3 | B71: 3+ Children | D71: =D36*$G$2 -> 7492.61 | E71: 5463.24 | F71: 4212.44 | G71: 3436.52 | H71: 2537.11
A72: 1 | B72: Rider Comp. Maternidad | D72: =D37*$G$2 -> 0 | E72: 0 | F72: 119.25 | G72: 119.25 | H72: 119.25
A73: 1 | B73: Transplante de organos | D73: =D38*$G$2 -> 0 | E73: 0 | F73: 0 | G73: 0 | H73: 0
A77: TARIFAS TRIMESTRALES
A78: EDAD | C78: CW1 | D78: CW2 | E78: CW3 | F78: CW4 | G78: CW5 | H78: CW6
A79: 18 | B79: 18-24 | D79: =D10*$G$3 -> 4813.6 | E79: =E10*$G$3 -> 3297.525 | F79: 2315.5 | G79: 1599.4 | H79: 1222.925
A80: 25 | B80: 25-29 | D80: =D11*$G$3 -> 5042.95 | E80: 3661.35 | F80: 2572.9 | G80: 1753.95 | H80: 1348.325
A81: 30 | B81: 30-34 | D81: =D12*$G$3 -> 5275.05 | E81: 3923.15 | F81: 2862.2 | G81: 2131.25 | H81: 1630.75
A82: 35 | B82: 35-39 | D82: =D13*$G$3 -> 5901.5 | E82: 4385.425 | F82: 3213.65 | G82: 2380.4 | H82: 1818.025
A83: 40 | B83: 40-44 | D83: =D14*$G$3 -> 6854.65 | E83: 4813.6 | F83: 3567.85 | G83: 2630.375 | H83: 2004.475
A84: 45 | B84: 45-49 | D84: =D15*$G$3 -> 7647.2 | E84: 5373.5 | F84: 3983.925 | G84: 2943.6 | H84: 2255.275
A85: 50 | B85: 50-54 | D85: =D16*$G$3 -> 9984.975 | E85: 7087.025 | F85: 5237.375 | G85: 4194.025 | H85: 3225.475
A86: 55 | B86: 55-59 | D86: =D17*$G$3 -> 10643.325 | E86: 7547.1 | F86: 5590.2 | G86: 4474.8 | H86: 3412.2
A87: 60 | B87: 60 | D87: =D18*$G$3 -> 11566.775 | E87: 8207.1 | F87: 6360.475 | G87: 5319.325 | H87: 4286.975
A88: 61 | B88: 61 | D88: =D19*$G$3 -> 12422.575 | E88: 8801.1 | F88: 6809.825 | G88: 5726.325 | H88: 4600.475
A89: 62 | B89: 62 | D89: =D20*$G$3 -> 13608.65 | E89: 9623.35 | F89: 7453.05 | G89: 6256.25 | H89: 5037.175
A90: 63 | B90: 63 | D90: =D21*$G$3 -> 14465.275 | E90: 10248.425 | F90: 7934.575 | G90: 6664.35 | H90: 5350.125
A91: 64 | B91: 64 | D91: =D22*$G$3 -> 15651.35 | E91: 11072.875 | F91: 8577.25 | G91: 7195.925 | H91: 5788.475
A92: 65 | B92: 65 | D92: =D23*$G$3 -> 20462.2 | E92: 14465.275 | F92: 10855.9 | G92: 9603.55 | H92: 8163.925
A93: 66 | B93: 66 | D93: =D24*$G$3 -> 23788.6 | E93: 16805.25 | F93: 12620.575 | G93: 11167.475 | H93: 9477.05
A94: 67 | B94: 67 | D94: =D25*$G$3 -> 25962.75 | E94: 18353.775 | F94: 13776.125 | G94: 12198.45 | H94: 10353.75
A95: 68 | B95: 68 | D95: =D26*$G$3 -> 28762.525 | E95: 20329.1 | F95: 15253.425 | G95: 13511.3 | H95: 11479.325
A96: 69 | B96: 69 | D96: =D27*$G$3 -> 31629.125 | E96: 22339.9 | F96: 16795.075 | G96: 14856.05 | H96: 12603.525
A97: 70 | B97: 70 | D97: =D28*$G$3 -> 38941.925 | E97: 27213.45 | F97: 19747.475 | G97: 17295.025 | H97: 14824.425
A98: 71 | B98: 71 | D98: =D29*$G$3 -> 40457.45 | E98: 28269.725 | F98: 20519.95 | G98: 17983.35 | H98: 15418.7
A99: 72 | B99: 72 | D99: =D30*$G$3 -> 41610.525 | E99: 29092.25 | F99: 21096.625 | G99: 18482.75 | H99: 15856.775
A100: 73 | B100: 73 | D100: =D31*$G$3 -> 43126.325 | E100: 30147.7 | F100: 21868.825 | G100: 19169.975 | H100: 16450.5
A101: 74 | B101: 74 | D101: =D32*$G$3 -> 43917.225 | E101: 30673.775 | F101: 22285.45 | G101: 19514.55 | H101: 16732.65
A102: 75 | B102: 75+ | D102: =D33*$G$3 -> 45827.1 | E102: 32023.2 | F102: 23247.125 | G102: 20359.625 | H102: 17450.675
A103: 1 | B103: 1 Child | D103: =D34*$G$3 -> 1682.175 | E103: 1220.45 | F103: 933.35 | G103: 783.475 | H103: 564.025
A104: 2 | B104: 2 Children | D104: =D35*$G$3 -> 2669.975 | E104: 1945.35 | F104: 1479.5 | G104: 1220.725 | H104: 909.15
A105: 3 | B105: 3+ Children | D105: =D36*$G$3 -> 3887.675 | E105: 2834.7 | F105: 2185.7 | G105: 1783.1 | H105: 1316.425
A106: 1 | B106: Rider Comp. Maternidad | D106: =D37*$G$3 -> 0 | E106: 0 | F106: 61.875 | G106: 61.875 | H106: 61.875
A107: 1 | B107: Transplante de organos | D107: =D38*$G$3 -> 0 | E107: 0 | F107: 0 | G107: 0 | H107: 0
D108: =D39*$G$3 -> 0 | E108: 0 | F108: 0 | G108: 0 | H108: 0
A114: BUPA SECURE CARE
A115: TARIFAS ANUALES
A117: EDAD | D117: SE2 | E117: SE3 | F117: SE4 | G117: SE5 | H117: SE6
A118: 18 | B118: 18-24 | D118: =R118 -> 8564 | E118: =S118 -> 6707 | F118: 5005 | G118: 4254 | H118: 3191 | L118: =Guatemala!D48 -> 8564 | M118: =Guatemala!E48 -> 6707 | N118: =Guatemala!F48 -> 5005 | O118: =Guatemala!G48 -> 4254 | P118: =Guatemala!H48 -> 3191 | R118: =L118*$N$2 -> 8564 | S118: =M118*$N$2 -> 6707 | T118: 5005 | U118: 4254 | V118: 3191
A119: 25 | B119: 25-29 | D119: =R119 -> 9403 | E119: =S119 -> 7546 | F119: =T119 -> 5630 | G119: =U119 -> 4696 | H119: =V119 -> 3546 | L119: =Guatemala!D49 -> 9403 | M119: =Guatemala!E49 -> 7546 | N119: =Guatemala!F49 -> 5630 | O119: =Guatemala!G49 -> 4696 | P119: =Guatemala!H49 -> 3546 | R119: =L119*$N$2 -> 9403 | S119: =M119*$N$2 -> 7546 | T119: =N119*$N$2 -> 5630 | U119: =O119*$N$2 -> 4696 | V119: =P119*$N$2 -> 3546
A120: 30 | B120: 30-34 | D120: 10799 | E120: 8846 | F120: 6540 | G120: 5486 | H120: 4167 | L120: =Guatemala!D50 -> 10799 | M120: =Guatemala!E50 -> 8846 | N120: =Guatemala!F50 -> 6540 | O120: =Guatemala!G50 -> 5486 | P120: =Guatemala!H50 -> 4167 | R120: 10799 | S120: 8846 | T120: 6540 | U120: 5486 | V120: 4167
A121: 35 | B121: 35-39 | D121: 11917 | E121: 9962 | F121: 7269 | G121: 6105 | H121: 4599 | L121: =Guatemala!D51 -> 11917 | M121: =Guatemala!E51 -> 9962 | N121: =Guatemala!F51 -> 7269 | O121: =Guatemala!G51 -> 6105 | P121: =Guatemala!H51 -> 4599 | R121: 11917 | S121: 9962 | T121: 7269 | U121: 6105 | V121: 4599
A122: 40 | B122: 40-44 | D122: 13306 | E122: 11358 | F122: 8176 | G122: 6901 | H122: 5224 | L122: =Guatemala!D52 -> 13306 | M122: =Guatemala!E52 -> 11358 | N122: =Guatemala!F52 -> 8176 | O122: =Guatemala!G52 -> 6901 | P122: =Guatemala!H52 -> 5224 | R122: 13306 | S122: 11358 | T122: 8176 | U122: 6901 | V122: 5224
A123: 45 | B123: 45-49 | D123: 15356 | E123: 13306 | F123: 9534 | G123: 8053 | H123: 6019 | L123: =Guatemala!D53 -> 15356 | M123: =Guatemala!E53 -> 13306 | N123: =Guatemala!F53 -> 9534 | O123: =Guatemala!G53 -> 8053 | P123: =Guatemala!H53 -> 6019 | R123: 15356 | S123: 13306 | T123: 9534 | U123: 8053 | V123: 6019
A124: 50 | B124: 50-54 | D124: 16752 | E124: 14614 | F124: 10441 | G124: 8760 | H124: 6638 | L124: =Guatemala!D54 -> 16752 | M124: =Guatemala!E54 -> 14614 | N124: =Guatemala!F54 -> 10441 | O124: =Guatemala!G54 -> 8760 | P124: =Guatemala!H54 -> 6638 | R124: 16752 | S124: 14614 | T124: 10441 | U124: 8760 | V124: 6638
A125: 55 | B125: 55-59 | D125: 19723 | E125: 17487 | F125: 12342 | G125: 10437 | H125: 7789 | L125: =Guatemala!D55 -> 19723 | M125: =Guatemala!E55 -> 17487 | N125: =Guatemala!F55 -> 12342 | O125: =Guatemala!G55 -> 10437 | P125: =Guatemala!H55 -> 7789 | R125: 19723 | S125: 17487 | T125: 12342 | U125: 10437 | V125: 7789
A126: 60 | B126: 60 | D126: 20655 | E126: 18701 | F126: 13067 | G126: 11057 | H126: 8228 | L126: =Guatemala!D56 -> 20655 | M126: =Guatemala!E56 -> 18701 | N126: =Guatemala!F56 -> 13067 | O126: =Guatemala!G56 -> 11057 | P126: =Guatemala!H56 -> 8228 | R126: 20655 | S126: 18701 | T126: 13067 | U126: 11057 | V126: 8228
A127: 61 | B127: 61 | D127: 23257 | E127: 21026 | F127: 14792 | G127: 12381 | H127: 9289 | L127: =Guatemala!D57 -> 23257 | M127: =Guatemala!E57 -> 21026 | N127: =Guatemala!F57 -> 14792 | O127: =Guatemala!G57 -> 12381 | P127: =Guatemala!H57 -> 9289 | R127: 23257 | S127: 21026 | T127: 14792 | U127: 12381 | V127: 9289
A128: 62 | B128: 62 | D128: 25857 | E128: 23351 | F128: 16424 | G128: 13794 | H128: 10348 | L128: =Guatemala!D58 -> 25857 | M128: =Guatemala!E58 -> 23351 | N128: =Guatemala!F58 -> 16424 | O128: =Guatemala!G58 -> 13794 | P128: =Guatemala!H58 -> 10348 | R128: 25857 | S128: 23351 | T128: 16424 | U128: 13794 | V128: 10348
A129: 63 | B129: 63 | D129: 28375 | E129: 25674 | F129: 18055 | G129: 15208 | H129: 11406 | L129: =Guatemala!D59 -> 28375 | M129: =Guatemala!E59 -> 25674 | N129: =Guatemala!F59 -> 18055 | O129: =Guatemala!G59 -> 15208 | P129: =Guatemala!H59 -> 11406 | R129: 28375 | S129: 25674 | T129: 18055 | U129: 15208 | V129: 11406
A130: 64 | B130: 64 | D130: 30974 | E130: 28091 | F130: 19684 | G130: 16615 | H130: 12467 | L130: =Guatemala!D60 -> 30974 | M130: =Guatemala!E60 -> 28091 | N130: =Guatemala!F60 -> 19684 | O130: =Guatemala!G60 -> 16615 | P130: =Guatemala!H60 -> 12467 | R130: 30974 | S130: 28091 | T130: 19684 | U130: 16615 | V130: 12467
A131: 65 | B131: 65 | D131: 31069 | E131: 28278 | F131: 19868 | G131: 16711 | H131: 12467 | L131: =Guatemala!D61 -> 31069 | M131: =Guatemala!E61 -> 28278 | N131: =Guatemala!F61 -> 19868 | O131: =Guatemala!G61 -> 16711 | P131: =Guatemala!H61 -> 12467 | R131: 31069 | S131: 28278 | T131: 19868 | U131: 16711 | V131: 12467
A132: 66 | B132: 66 | D132: 31069 | E132: 28558 | F132: 19956 | G132: 16797 | H132: 12467 | L132: =Guatemala!D62 -> 31069 | M132: =Guatemala!E62 -> 28558 | N132: =Guatemala!F62 -> 19956 | O132: =Guatemala!G62 -> 16797 | P132: =Guatemala!H62 -> 12467 | R132: 31069 | S132: 28558 | T132: 19956 | U132: 16797 | V132: 12467
A133: 67 | B133: 67 | D133: 34505 | E133: 31809 | F133: 22131 | G133: 18649 | H133: 13883 | L133: =Guatemala!D63 -> 34505 | M133: =Guatemala!E63 -> 31809 | N133: =Guatemala!F63 -> 22131 | O133: =Guatemala!G63 -> 18649 | P133: =Guatemala!H63 -> 13883 | R133: 34505 | S133: 31809 | T133: 22131 | U133: 18649 | V133: 13883
A134: 68 | B134: 68 | D134: 37944 | E134: 34971 | F134: 24397 | G134: 20506 | H134: 15298 | L134: =Guatemala!D64 -> 37944 | M134: =Guatemala!E64 -> 34971 | N134: =Guatemala!F64 -> 24397 | O134: =Guatemala!G64 -> 20506 | P134: =Guatemala!H64 -> 15298 | R134: 37944 | S134: 34971 | T134: 24397 | U134: 20506 | V134: 15298
A135: 69 | B135: 69 | D135: 39713 | E135: 36554 | F135: 25489 | G135: 21476 | H135: 16004 | L135: =Guatemala!D65 -> 39713 | M135: =Guatemala!E65 -> 36554 | N135: =Guatemala!F65 -> 25489 | O135: =Guatemala!G65 -> 21476 | P135: =Guatemala!H65 -> 16004 | R135: 39713 | S135: 36554 | T135: 25489 | U135: 21476 | V135: 16004
A136: 70 | B136: 70 | D136: 39807 | E136: 37113 | F136: 25760 | G136: 21649 | H136: 16088 | L136: =Guatemala!D66 -> 39807 | M136: =Guatemala!E66 -> 37113 | N136: =Guatemala!F66 -> 25760 | O136: =Guatemala!G66 -> 21649 | P136: =Guatemala!H66 -> 16088 | R136: 39807 | S136: 37113 | T136: 25760 | U136: 21649 | V136: 16088
A137: 71 | B137: 71 | D137: 44739 | E137: 41854 | F137: 29022 | G137: 24391 | H137: 18124 | L137: =Guatemala!D67 -> 44739 | M137: =Guatemala!E67 -> 41854 | N137: =Guatemala!F67 -> 29022 | O137: =Guatemala!G67 -> 24391 | P137: =Guatemala!H67 -> 18124 | R137: 44739 | S137: 41854 | T137: 29022 | U137: 24391 | V137: 18124
A138: 72 | B138: 72 | D138: 49755 | E138: 46504 | F138: 32192 | G138: 27040 | H138: 20150 | L138: =Guatemala!D68 -> 49755 | M138: =Guatemala!E68 -> 46504 | N138: =Guatemala!F68 -> 32192 | O138: =Guatemala!G68 -> 27040 | P138: =Guatemala!H68 -> 20150 | R138: 49755 | S138: 46504 | T138: 32192 | U138: 27040 | V138: 20150
A139: 73 | B139: 73 | D139: 54777 | E139: 51147 | F139: 35462 | G139: 29780 | H139: 22183 | L139: =Guatemala!D69 -> 54777 | M139: =Guatemala!E69 -> 51147 | N139: =Guatemala!F69 -> 35462 | O139: =Guatemala!G69 -> 29780 | P139: =Guatemala!H69 -> 22183 | R139: 54777 | S139: 51147 | T139: 35462 | U139: 29780 | V139: 22183
A140: 74 | B140: 74 | D140: 59706 | E140: 55798 | F140: 38719 | G140: 32515 | H140: 24217 | L140: =Guatemala!D70 -> 59706 | M140: =Guatemala!E70 -> 55798 | N140: =Guatemala!F70 -> 38719 | O140: =Guatemala!G70 -> 32515 | P140: =Guatemala!H70 -> 24217 | R140: 59706 | S140: 55798 | T140: 38719 | U140: 32515 | V140: 24217
A141: 75 | B141: 75+ | D141: 65098 | E141: 61196 | F141: 42347 | G141: 35521 | H141: 26425 | L141: =Guatemala!D71 -> 65098 | M141: =Guatemala!E71 -> 61196 | N141: =Guatemala!F71 -> 42347 | O141: =Guatemala!G71 -> 35521 | P141: =Guatemala!H71 -> 26425 | R141: 65098 | S141: 61196 | T141: 42347 | U141: 35521 | V141: 26425
A142: 1 | B142: 1 Child | D142: 4093 | E142: 2425 | F142: 2001 | G142: 1684 | H142: 1246 | L142: =Guatemala!D72 -> 4093 | M142: =Guatemala!E72 -> 2425 | N142: =Guatemala!F72 -> 2001 | O142: =Guatemala!G72 -> 1684 | P142: =Guatemala!H72 -> 1246 | R142: 4093 | S142: 2425 | T142: 2001 | U142: 1684 | V142: 1246
A143: 2 | B143: 2 Children | D143: 6980 | E143: 3636 | F143: 3178 | G143: 2655 | H143: 1948 | L143: =Guatemala!D73 -> 6980 | M143: =Guatemala!E73 -> 3636 | N143: =Guatemala!F73 -> 3178 | O143: =Guatemala!G73 -> 2655 | P143: =Guatemala!H73 -> 1948 | R143: 6980 | S143: 3636 | T143: 3178 | U143: 2655 | V143: 1948
A144: 3 | B144: 3+ Children | D144: =R144 -> 10229 | E144: =S144 -> 5214 | F144: =T144 -> 4630 | G144: =U144 -> 3889 | H144: =V144 -> 2923 | L144: =Guatemala!D74 -> 10229 | M144: =Guatemala!E74 -> 5214 | N144: =Guatemala!F74 -> 4630 | O144: =Guatemala!G74 -> 3889 | P144: =Guatemala!H74 -> 2923 | R144: 10229 | S144: 5214 | T144: 4630 | U144: 3889 | V144: 2923
A145: 1 | B145: Rider Comp. Maternidad | D145: =L145 -> 225 | E145: =M145 -> 225 | F145: 225 | G145: 225 | H145: 225 | L145: 225 | M145: 225 | N145: 225 | O145: 225 | P145: 225
A146: 1 | B146: Transplante de organos | D146: =L146 -> 300 | E146: =M146 -> 300 | F146: =N146 -> 300 | G146: =O146 -> 300 | H146: =P146 -> 300 | L146: 300 | M146: 300 | N146: 300 | O146: 300 | P146: 300
A149: TARIFAS SEMESTRALES
A151: EDAD | D151: SE2 | E151: SE3 | F151: SE4 | G151: SE5 | H151: SE6
A152: 18 | B152: 18-24 | D152: =D118*$G$2 -> 4538.92 | E152: =E118*$G$2 -> 3554.71 | F152: 2652.65 | G152: 2254.62 | H152: 1691.23
A153: 25 | B153: 25-29 | D153: =D119*$G$2 -> 4983.59 | E153: 3999.38 | F153: 2983.9 | G153: 2488.88 | H153: 1879.38
A154: 30 | B154: 30-34 | D154: =D120*$G$2 -> 5723.47 | E154: 4688.38 | F154: 3466.2 | G154: 2907.58 | H154: 2208.51
A155: 35 | B155: 35-39 | D155: =D121*$G$2 -> 6316.01 | E155: 5279.86 | F155: 3852.57 | G155: 3235.65 | H155: 2437.47
A156: 40 | B156: 40-44 | D156: =D122*$G$2 -> 7052.18 | E156: 6019.74 | F156: 4333.28 | G156: 3657.53 | H156: 2768.72
A157: 45 | B157: 45-49 | D157: =D123*$G$2 -> 8138.68 | E157: 7052.18 | F157: 5053.02 | G157: 4268.09 | H157: 3190.07
A158: 50 | B158: 50-54 | D158: =D124*$G$2 -> 8878.56 | E158: 7745.42 | F158: 5533.73 | G158: 4642.8 | H158: 3518.14
A159: 55 | B159: 55-59 | D159: =D125*$G$2 -> 10453.19 | E159: 9268.11 | F159: 6541.26 | G159: 5531.61 | H159: 4128.17
A160: 60 | B160: 60 | D160: =D126*$G$2 -> 10947.15 | E160: 9911.53 | F160: 6925.51 | G160: 5860.21 | H160: 4360.84
A161: 61 | B161: 61 | D161: =D127*$G$2 -> 12326.21 | E161: 11143.78 | F161: 7839.76 | G161: 6561.93 | H161: 4923.17
A162: 62 | B162: 62 | D162: =D128*$G$2 -> 13704.21 | E162: 12376.03 | F162: 8704.72 | G162: 7310.82 | H162: 5484.44
A163: 63 | B163: 63 | D163: =D129*$G$2 -> 15038.75 | E163: 13607.22 | F163: 9569.15 | G163: 8060.24 | H163: 6045.18
A164: 64 | B164: 64 | D164: =D130*$G$2 -> 16416.22 | E164: 14888.23 | F164: 10432.52 | G164: 8805.95 | H164: 6607.51
A165: 65 | B165: 65 | D165: =D131*$G$2 -> 16466.57 | E165: 14987.34 | F165: 10530.04 | G165: 8856.83 | H165: 6607.51
A166: 66 | B166: 66 | D166: =D132*$G$2 -> 16466.57 | E166: 15135.74 | F166: 10576.68 | G166: 8902.41 | H166: 6607.51
A167: 67 | B167: 67 | D167: =D133*$G$2 -> 18287.65 | E167: 16858.77 | F167: 11729.43 | G167: 9883.97 | H167: 7357.99
A168: 68 | B168: 68 | D168: =D134*$G$2 -> 20110.32 | E168: 18534.63 | F168: 12930.41 | G168: 10868.18 | H168: 8107.94
A169: 69 | B169: 69 | D169: =D135*$G$2 -> 21047.89 | E169: 19373.62 | F169: 13509.17 | G169: 11382.28 | H169: 8482.12
A170: 70 | B170: 70 | D170: =D136*$G$2 -> 21097.71 | E170: 19669.89 | F170: 13652.8 | G170: 11473.97 | H170: 8526.64
A171: 71 | B171: 71 | D171: =D137*$G$2 -> 23711.67 | E171: 22182.62 | F171: 15381.66 | G171: 12927.23 | H171: 9605.72
A172: 72 | B172: 72 | D172: =D138*$G$2 -> 26370.15 | E172: 24647.12 | F172: 17061.76 | G172: 14331.2 | H172: 10679.5
A173: 73 | B173: 73 | D173: =D139*$G$2 -> 29031.81 | E173: 27107.91 | F173: 18794.86 | G173: 15783.4 | H173: 11756.99
A174: 74 | B174: 74 | D174: =D140*$G$2 -> 31644.18 | E174: 29572.94 | F174: 20521.07 | G174: 17232.95 | H174: 12835.01
A175: 75 | B175: 75+ | D175: =D141*$G$2 -> 34501.94 | E175: 32433.88 | F175: 22443.91 | G175: 18826.13 | H175: 14005.25
A176: 1 | B176: 1 Child | D176: =D142*$G$2 -> 2169.29 | E176: 1285.25 | F176: 1060.53 | G176: 892.52 | H176: 660.38
A177: 2 | B177: 2 Children | D177: =D143*$G$2 -> 3699.4 | E177: 1927.08 | F177: 1684.34 | G177: 1407.15 | H177: 1032.44
A178: 3 | B178: 3+ Children | D178: =D144*$G$2 -> 5421.37 | E178: 2763.42 | F178: 2453.9 | G178: 2061.17 | H178: 1549.19
A179: 1 | B179: Rider Comp. Maternidad | D179: =D145*$G$2 -> 119.25 | E179: 119.25 | F179: 119.25 | G179: 119.25 | H179: 119.25
A180: 1 | B180: Transplante de organos | D180: =D146*$G$2 -> 159 | E180: 159 | F180: 159 | G180: 159 | H180: 159
A184: TARIFAS TRIMESTRALES
A186: EDAD | D186: SE2 | E186: SE3 | F186: SE4 | G186: SE5 | H186: SE6
A187: 18 | B187: 18-24 | D187: =D118*$G$3 -> 2355.1 | E187: =E118*$G$3 -> 1844.425 | F187: 1376.375 | G187: 1169.85 | H187: 877.525
A188: 25 | B188: 25-29 | D188: =D119*$G$3 -> 2585.825 | E188: 2075.15 | F188: 1548.25 | G188: 1291.4 | H188: 975.15
A189: 30 | B189: 30-34 | D189: =D120*$G$3 -> 2969.725 | E189: 2432.65 | F189: 1798.5 | G189: 1508.65 | H189: 1145.925
A190: 35 | B190: 35-39 | D190: =D121*$G$3 -> 3277.175 | E190: 2739.55 | F190: 1998.975 | G190: 1678.875 | H190: 1264.725
A191: 40 | B191: 40-44 | D191: =D122*$G$3 -> 3659.15 | E191: 3123.45 | F191: 2248.4 | G191: 1897.775 | H191: 1436.6
A192: 45 | B192: 45-49 | D192: =D123*$G$3 -> 4222.9 | E192: 3659.15 | F192: 2621.85 | G192: 2214.575 | H192: 1655.225
A193: 50 | B193: 50-54 | D193: =D124*$G$3 -> 4606.8 | E193: 4018.85 | F193: 2871.275 | G193: 2409 | H193: 1825.45
A194: 55 | B194: 55-59 | D194: =D125*$G$3 -> 5423.825 | E194: 4808.925 | F194: 3394.05 | G194: 2870.175 | H194: 2141.975
A195: 60 | B195: 60 | D195: =D126*$G$3 -> 5680.125 | E195: 5142.775 | F195: 3593.425 | G195: 3040.675 | H195: 2262.7
A196: 61 | B196: 61 | D196: =D127*$G$3 -> 6395.675 | E196: 5782.15 | F196: 4067.8 | G196: 3404.775 | H196: 2554.475
A197: 62 | B197: 62 | D197: =D128*$G$3 -> 7110.675 | E197: 6421.525 | F197: 4516.6 | G197: 3793.35 | H197: 2845.7
A198: 63 | B198: 63 | D198: =D129*$G$3 -> 7803.125 | E198: 7060.35 | F198: 4965.125 | G198: 4182.2 | H198: 3136.65
A199: 64 | B199: 64 | D199: =D130*$G$3 -> 8517.85 | E199: 7725.025 | F199: 5413.1 | G199: 4569.125 | H199: 3428.425
A200: 65 | B200: 65 | D200: =D131*$G$3 -> 8543.975 | E200: 7776.45 | F200: 5463.7 | G200: 4595.525 | H200: 3428.425
A201: 66 | B201: 66 | D201: =D132*$G$3 -> 8543.975 | E201: 7853.45 | F201: 5487.9 | G201: 4619.175 | H201: 3428.425
A202: 67 | B202: 67 | D202: =D133*$G$3 -> 9488.875 | E202: 8747.475 | F202: 6086.025 | G202: 5128.475 | H202: 3817.825
A203: 68 | B203: 68 | D203: =D134*$G$3 -> 10434.6 | E203: 9617.025 | F203: 6709.175 | G203: 5639.15 | H203: 4206.95
A204: 69 | B204: 69 | D204: =D135*$G$3 -> 10921.075 | E204: 10052.35 | F204: 7009.475 | G204: 5905.9 | H204: 4401.1
A205: 70 | B205: 70 | D205: =D136*$G$3 -> 10946.925 | E205: 10206.075 | F205: 7084 | G205: 5953.475 | H205: 4424.2
A206: 71 | B206: 71 | D206: =D137*$G$3 -> 12303.225 | E206: 11509.85 | F206: 7981.05 | G206: 6707.525 | H206: 4984.1
A207: 72 | B207: 72 | D207: =D138*$G$3 -> 13682.625 | E207: 12788.6 | F207: 8852.8 | G207: 7436 | H207: 5541.25
A208: 73 | B208: 73 | D208: =D139*$G$3 -> 15063.675 | E208: 14065.425 | F208: 9752.05 | G208: 8189.5 | H208: 6100.325
A209: 74 | B209: 74 | D209: =D140*$G$3 -> 16419.15 | E209: 15344.45 | F209: 10647.725 | G209: 8941.625 | H209: 6659.675
A210: 75 | B210: 75+ | D210: =D141*$G$3 -> 17901.95 | E210: 16828.9 | F210: 11645.425 | G210: 9768.275 | H210: 7266.875
A211: 1 | B211: 1 Child | D211: =D142*$G$3 -> 1125.575 | E211: 666.875 | F211: 550.275 | G211: 463.1 | H211: 342.65
A212: 2 | B212: 2 Children | D212: =D143*$G$3 -> 1919.5 | E212: 999.9 | F212: 873.95 | G212: 730.125 | H212: 535.7
A213: 3 | B213: 3+ Children | D213: =D144*$G$3 -> 2812.975 | E213: 1433.85 | F213: 1273.25 | G213: 1069.475 | H213: 803.825
A214: 1 | B214: Rider Comp. Maternidad | D214: =D145*$G$3 -> 61.875 | E214: 61.875 | F214: 61.875 | G214: 61.875 | H214: 61.875
A215: 1 | B215: Transplante de organos | D215: =D146*$G$3 -> 82.5 | E215: 82.5 | F215: 82.5 | G215: 82.5 | H215: 82.5
A220: BUPA ESSENTIAL CARE
A221: TARIFAS ANUALES
A223: EDAD | C223: ET1 | D223: ET2 | E223: ET3 | F223: ET4 | G223: ET5 | H223: ET6
A224: 18 | C224: =R224 -> 1964 | D224: =S224 -> 1605.65 | E224: 1488.35 | F224: 1055.7 | G224: 795.6 | H224: 560.15 | K224: =Guatemala!C86 -> 1964 | L224: =Guatemala!D86 -> 1889 | M224: =Guatemala!E86 -> 1751 | N224: =Guatemala!F86 -> 1242 | O224: =Guatemala!G86 -> 936 | P224: =Guatemala!H86 -> 659 | R224: =K224*M2 -> 1964 | S224: =L224*$O$2 -> 1605.65 | T224: 1488.35 | U224: 1055.7 | V224: 795.6 | W224: 560.15
A225: 19 | C225: =R225 -> 1701.7 | D225: =S225 -> 1637.1 | E225: =T225 -> 1518.1 | F225: =U225 -> 1074.4 | G225: =V225 -> 795.6 | H225: =W225 -> 578 | K225: =Guatemala!C87 -> 2002 | L225: =Guatemala!D87 -> 1926 | M225: =Guatemala!E87 -> 1786 | N225: =Guatemala!F87 -> 1264 | O225: =Guatemala!G87 -> 936 | P225: =Guatemala!H87 -> 680 | R225: =K225*$O$2 -> 1701.7 | S225: =L225*$O$2 -> 1637.1 | T225: =M225*$O$2 -> 1518.1 | U225: =N225*$O$2 -> 1074.4 | V225: =O225*$O$2 -> 795.6 | W225: =P225*$O$2 -> 578
A226: 20 | C226: 1731.45 | D226: 1666.85 | E226: 1543.6 | F226: 1093.95 | G226: 816.85 | H226: 578 | K226: =Guatemala!C88 -> 2037 | L226: =Guatemala!D88 -> 1961 | M226: =Guatemala!E88 -> 1816 | N226: =Guatemala!F88 -> 1287 | O226: =Guatemala!G88 -> 961 | P226: =Guatemala!H88 -> 680 | R226: 1731.45 | S226: 1666.85 | T226: 1543.6 | U226: 1093.95 | V226: 816.85 | W226: 578
A227: 21 | C227: 1763.75 | D227: 1695.75 | E227: 1572.5 | F227: 1113.5 | G227: 835.55 | H227: 599.25 | K227: =Guatemala!C89 -> 2075 | L227: =Guatemala!D89 -> 1995 | M227: =Guatemala!E89 -> 1850 | N227: =Guatemala!F89 -> 1310 | O227: =Guatemala!G89 -> 983 | P227: =Guatemala!H89 -> 705 | R227: 1763.75 | S227: 1695.75 | T227: 1572.5 | U227: 1113.5 | V227: 835.55 | W227: 599.25
... 632 more rows

Sheet Guatemala (hidden)
K1: D1 | L1: D2 | M1: D3 | N1: D4 | O1: D5 | P1: D6
B2: REGIÓN | C2: ='INGRESO DE DATOS'!W14 -> Guatemala | E2: FACTOR SEMESTRAL : | G2: 0.53 | I2: NEW BUSINESS DISCUOUNTS | K2: ='INGRESO DE DATOS'!O42 -> 1 | L2: ='INGRESO DE DATOS'!P42 -> 1 | M2: ='INGRESO DE DATOS'!Q42 -> 1 | N2: ='INGRESO DE DATOS'!R42 -> 1 | O2: ='INGRESO DE DATOS'!S42 -> 0.85 | P2: ='INGRESO DE DATOS'!T42 -> 0.95
A5: BUPA COMPLETE CARE
A6: TARIFAS ANUALES
A8: EDAD | C8: CW1 | D8: CW2 | E8: CW3 | F8: CW4 | G8: CW5 | H8: CW6
A9: 18 | B9: 18-24 | D9: 17504 | E9: 11991 | F9: 8420 | G9: 5816 | H9: 4447
A10: 25 | B10: 25-29 | D10: 18338 | E10: 13314 | F10: 9356 | G10: 6378 | H10: 4903
A11: 30 | B11: 30-34 | D11: 19182 | E11: 14266 | F11: 10408 | G11: 7750 | H11: 5930
A12: 35 | B12: 35-39 | D12: 21460 | E12: 15947 | F12: 11686 | G12: 8656 | H12: 6611
A13: 40 | B13: 40-44 | D13: 24926 | E13: 17504 | F13: 12974 | G13: 9565 | H13: 7289
A14: 45 | B14: 45-49 | D14: 27808 | E14: 19540 | F14: 14487 | G14: 10704 | H14: 8201
A15: 50 | B15: 50-54 | D15: 36309 | E15: 25771 | F15: 19045 | G15: 15251 | H15: 11729
A16: 55 | B16: 55-59 | D16: 38703 | E16: 27444 | F16: 20328 | G16: 16272 | H16: 12408
A17: 60 | B17: 60 | D17: 42061 | E17: 29844 | F17: 23129 | G17: 19343 | H17: 15589
A18: 61 | B18: 61 | D18: 45173 | E18: 32004 | F18: 24763 | G18: 20823 | H18: 16729
A19: 62 | B19: 62 | D19: 49486 | E19: 34994 | F19: 27102 | G19: 22750 | H19: 18317
A20: 63 | B20: 63 | D20: 52601 | E20: 37267 | F20: 28853 | G20: 24234 | H20: 19455
A21: 64 | B21: 64 | D21: 56914 | E21: 40265 | F21: 31190 | G21: 26167 | H21: 21049
A22: 65 | B22: 65 | D22: 74408 | E22: 52601 | F22: 39476 | G22: 34922 | H22: 29687
A23: 66 | B23: 66 | D23: 86504 | E23: 61110 | F23: 45893 | G23: 40609 | H23: 34462
A24: 67 | B24: 67 | D24: 94410 | E24: 66741 | F24: 50095 | G24: 44358 | H24: 37650
A25: 68 | B25: 68 | D25: 104591 | E25: 73924 | F25: 55467 | G25: 49132 | H25: 41743
A26: 69 | B26: 69 | D26: 115015 | E26: 81236 | F26: 61073 | G26: 54022 | H26: 45831
A27: 70 | B27: 70 | D27: 141607 | E27: 98958 | F27: 71809 | G27: 62891 | H27: 53907
A28: 71 | B28: 71 | D28: 147118 | E28: 102799 | F28: 74618 | G28: 65394 | H28: 56068
A29: 72 | B29: 72 | D29: 151311 | E29: 105790 | F29: 76715 | G29: 67210 | H29: 57661
A30: 73 | B30: 73 | D30: 156823 | E30: 109628 | F30: 79523 | G30: 69709 | H30: 59820
A31: 74 | B31: 74 | D31: 159699 | E31: 111541 | F31: 81038 | G31: 70962 | H31: 60846
A32: 75 | B32: 75+ | D32: 166644 | E32: 116448 | F32: 84535 | G32: 74035 | H32: 63457
A33: 1 | B33: 1 Child | D33: 6117 | E33: 4438 | F33: 3394 | G33: 2849 | H33: 2051
A34: 2 | B34: 2 Children | D34: 9709 | E34: 7074 | F34: 5380 | G34: 4439 | H34: 3306
A35: 3 | B35: 3+ Children | D35: 14137 | E35: 10308 | F35: 7948 | G35: 6484 | H35: 4787
A36: 1 | B36: Rider Comp. Maternidad | D36: 0 | E36: 0 | F36: 225 | G36: 225 | H36: 225
A37: 1 | B37: Transplante de organos | D37: 0 | E37: 0 | F37: 0 | G37: 0 | H37: 0
A44: BUPA SECURE CARE
A45: TARIFAS ANUALES
A47: EDAD | D47: SE2 | E47: SE3 | F47: SE4 | G47: SE5 | H47: SE6
A48: 18 | B48: 18-24 | D48: 8564 | E48: 6707 | F48: 5005 | G48: 4254 | H48: 3191
A49: 25 | B49: 25-29 | D49: 9403 | E49: 7546 | F49: 5630 | G49: 4696 | H49: 3546
A50: 30 | B50: 30-34 | D50: 10799 | E50: 8846 | F50: 6540 | G50: 5486 | H50: 4167
A51: 35 | B51: 35-39 | D51: 11917 | E51: 9962 | F51: 7269 | G51: 6105 | H51: 4599
A52: 40 | B52: 40-44 | D52: 13306 | E52: 11358 | F52: 8176 | G52: 6901 | H52: 5224
A53: 45 | B53: 45-49 | D53: 15356 | E53: 13306 | F53: 9534 | G53: 8053 | H53: 6019
A54: 50 | B54: 50-54 | D54: 16752 | E54: 14614 | F54: 10441 | G54: 8760 | H54: 6638
A55: 55 | B55: 55-59 | D55: 19723 | E55: 17487 | F55: 12342 | G55: 10437 | H55: 7789
A56: 60 | B56: 60 | D56: 20655 | E56: 18701 | F56: 13067 | G56: 11057 | H56: 8228
A57: 61 | B57: 61 | D57: 23257 | E57: 21026 | F57: 14792 | G57: 12381 | H57: 9289
A58: 62 | B58: 62 | D58: 25857 | E58: 23351 | F58: 16424 | G58: 13794 | H58: 10348
A59: 63 | B59: 63 | D59: 28375 | E59: 25674 | F59: 18055 | G59: 15208 | H59: 11406
A60: 64 | B60: 64 | D60: 30974 | E60: 28091 | F60: 19684 | G60: 16615 | H60: 12467
A61: 65 | B61: 65 | D61: 31069 | E61: 28278 | F61: 19868 | G61: 16711 | H61: 12467
A62: 66 | B62: 66 | D62: 31069 | E62: 28558 | F62: 19956 | G62: 16797 | H62: 12467
A63: 67 | B63: 67 | D63: 34505 | E63: 31809 | F63: 22131 | G63: 18649 | H63: 13883
A64: 68 | B64: 68 | D64: 37944 | E64: 34971 | F64: 24397 | G64: 20506 | H64: 15298
A65: 69 | B65: 69 | D65: 39713 | E65: 36554 | F65: 25489 | G65: 21476 | H65: 16004
A66: 70 | B66: 70 | D66: 39807 | E66: 37113 | F66: 25760 | G66: 21649 | H66: 16088
A67: 71 | B67: 71 | D67: 44739 | E67: 41854 | F67: 29022 | G67: 24391 | H67: 18124
A68: 72 | B68: 72 | D68: 49755 | E68: 46504 | F68: 32192 | G68: 27040 | H68: 20150
A69: 73 | B69: 73 | D69: 54777 | E69: 51147 | F69: 35462 | G69: 29780 | H69: 22183
A70: 74 | B70: 74 | D70: 59706 | E70: 55798 | F70: 38719 | G70: 32515 | H70: 24217
A71: 75 | B71: 75+ | D71: 65098 | E71: 61196 | F71: 42347 | G71: 35521 | H71: 26425
A72: 1 | B72: 1 Child | D72: 4093 | E72: 2425 | F72: 2001 | G72: 1684 | H72: 1246
A73: 2 | B73: 2 Children | D73: 6980 | E73: 3636 | F73: 3178 | G73: 2655 | H73: 1948
A74: 3 | B74: 3+ Children | D74: 10229 | E74: 5214 | F74: 4630 | G74: 3889 | H74: 2923
A75: 1 | B75: Rider Comp. Maternidad | D75: 225 | E75: 225 | F75: 225 | G75: 225 | H75: 225
A76: 1 | B76: Transplante de organos | D76: 300 | E76: 300 | F76: 300 | G76: 300 | H76: 300
A82: BUPA ESSENTIAL CARE
A83: TARIFAS ANUALES
A85: EDAD | C85: ET1 | D85: ET2 | E85: ET3 | F85: ET4 | G85: ET5 | H85: ET6
A86: 18 | C86: 1964 | D86: 1889 | E86: 1751 | F86: 1242 | G86: 936 | H86: 659
A87: 19 | C87: 2002 | D87: 1926 | E87: 1786 | F87: 1264 | G87: 936 | H87: 680
A88: 20 | C88: 2037 | D88: 1961 | E88: 1816 | F88: 1287 | G88: 961 | H88: 680
A89: 21 | C89: 2075 | D89: 1995 | E89: 1850 | F89: 1310 | G89: 983 | H89: 705
A90: 22 | C90: 2113 | D90: 2032 | E90: 1884 | F90: 1336 | G90: 1008 | H90: 705
A91: 23 | C91: 2146 | D91: 2066 | E91: 1914 | F91: 1356 | G91: 1008 | H91: 729
A92: 24 | C92: 2224 | D92: 2138 | E92: 1981 | F92: 1406 | G92: 1031 | H92: 750
A93: 25 | C93: 2260 | D93: 2172 | E93: 2015 | F93: 1428 | G93: 1055 | H93: 750
A94: 26 | C94: 2295 | D94: 2209 | E94: 2048 | F94: 1451 | G94: 1077 | H94: 774
A95: 27 | C95: 2336 | D95: 2246 | E95: 2081 | F95: 1474 | G95: 1101 | H95: 774
A96: 28 | C96: 2368 | D96: 2278 | E96: 2112 | F96: 1497 | G96: 1125 | H96: 797
A97: 29 | C97: 2444 | D97: 2351 | E97: 2180 | F97: 1545 | G97: 1147 | H97: 819
A98: 30 | C98: 2521 | D98: 2423 | E98: 2246 | F98: 1592 | G98: 1172 | H98: 845
A99: 31 | C99: 2558 | D99: 2458 | E99: 2280 | F99: 1616 | G99: 1196 | H99: 845
A100: 32 | C100: 2630 | D100: 2530 | E100: 2345 | F100: 1663 | G100: 1218 | H100: 864
A101: 33 | C101: 2704 | D101: 2600 | E101: 2411 | F101: 1708 | G101: 1242 | H101: 890
A102: 34 | C102: 2779 | D102: 2673 | E102: 2478 | F102: 1754 | G102: 1287 | H102: 915
A103: 35 | C103: 2851 | D103: 2740 | E103: 2543 | F103: 1800 | G103: 1310 | H103: 936
A104: 36 | C104: 2927 | D104: 2814 | E104: 2610 | F104: 1847 | G104: 1356 | H104: 961
A105: 37 | C105: 3000 | D105: 2885 | E105: 2674 | F105: 1892 | G105: 1380 | H105: 983
A106: 38 | C106: 3113 | D106: 2994 | E106: 2776 | F106: 1965 | G106: 1428 | H106: 1008
A107: 39 | C107: 3222 | D107: 3097 | E107: 2872 | F107: 2034 | G107: 1474 | H107: 1031
A108: 40 | C108: 3298 | D108: 3170 | E108: 2941 | F108: 2081 | G108: 1497 | H108: 1055
A109: 41 | C109: 3407 | D109: 3277 | E109: 3038 | F109: 2151 | G109: 1545 | H109: 1077
A110: 42 | C110: 3516 | D110: 3381 | E110: 3135 | F110: 2220 | G110: 1592 | H110: 1101
A111: 43 | C111: 3626 | D111: 3490 | E111: 3233 | F111: 2290 | G111: 1636 | H111: 1147
A112: 44 | C112: 3775 | D112: 3631 | E112: 3364 | F112: 2383 | G112: 1687 | H112: 1172
A113: 45 | C113: 3885 | D113: 3736 | E113: 3465 | F113: 2454 | G113: 1734 | H113: 1218
A114: 46 | C114: 3998 | D114: 3844 | E114: 3565 | F114: 2524 | G114: 1777 | H114: 1242
A115: 47 | C115: 4145 | D115: 3986 | E115: 3695 | F115: 2618 | G115: 1824 | H115: 1264
A116: 48 | C116: 4329 | D116: 4165 | E116: 3861 | F116: 2734 | G116: 1892 | H116: 1310
A117: 49 | C117: 4478 | D117: 4309 | E117: 3992 | F117: 2829 | G117: 1965 | H117: 1356
A118: 50 | C118: 4662 | D118: 4484 | E118: 4157 | F118: 2945 | G118: 2034 | H118: 1380
A119: 51 | C119: 4850 | D119: 4663 | E119: 4325 | F119: 3062 | G119: 2105 | H119: 1428
A120: 52 | C120: 4996 | D120: 4804 | E120: 4454 | F120: 3155 | G120: 2173 | H120: 1474
A121: 53 | C121: 5218 | D121: 5018 | E121: 4652 | F121: 3292 | G121: 2246 | H121: 1523
A122: 54 | C122: 5442 | D122: 5233 | E122: 4851 | F122: 3435 | G122: 2336 | H122: 1545 | I122: CR3 | L122: CR4 | O122: CR5
A123: 55 | C123: 5659 | D123: 5444 | E123: 5046 | F123: 3573 | G123: 2408 | H123: 1592 | I123: INDIVIDUAL | J123: 2 PERSONAS | K123: FAMILIAR | L123: INDIVIDUAL | M123: 2 PERSONAS | N123: FAMILIAR | O123: INDIVIDUAL | P123: 2 PERSONAS | Q123: FAMILIAR
A124: 56 | C124: 5884 | D124: 5658 | E124: 5248 | F124: 3716 | G124: 2501 | H124: 1636 | I124: =AU124 -> 0 | J124: 0 | K124: 0 | L124: 0 | M124: 0 | N124: 0 | O124: 0 | P124: 0 | Q124: 0
A125: 57 | C125: 6104 | D125: 5870 | E125: 5442 | F125: 3854 | G125: 2596 | H125: 1687 | I125: 0 | J125: 0 | K125: 0 | L125: 0 | M125: 0 | N125: 0 | O125: 0 | P125: 0 | Q125: 0
A126: 58 | C126: 6440 | D126: 6192 | E126: 5741 | F126: 4065 | G126: 2689 | H126: 1734
A127: 59 | C127: 6734 | D127: 6477 | E127: 6004 | F127: 4252 | G127: 2805 | H127: 1777
A128: 60 | C128: 7029 | D128: 6760 | E128: 6266 | F128: 4438 | G128: 2923 | H128: 1847
A129: 61 | C129: 7436 | D129: 7151 | E129: 6630 | F129: 4697 | G129: 3062 | H129: 1892
A130: 62 | C130: 7992 | D130: 7686 | E130: 7125 | F130: 5044 | G130: 3273 | H130: 1986
A131: 63 | C131: 8770 | D131: 8432 | E131: 7818 | F131: 5536 | G131: 3573 | H131: 2081
A132: 64 | C132: 9840 | D132: 9465 | E132: 8773 | F132: 6212 | G132: 3997 | H132: 2220
A133: 65 | C133: 11210 | D133: 10779 | E133: 9992 | F133: 7075 | G133: 4533 | H133: 2432
A134: 66 | C134: 12873 | D134: 12380 | E134: 11477 | F134: 8126 | G134: 5162 | H134: 2689
A135: 67 | C135: 14797 | D135: 14230 | E135: 13191 | F135: 9341 | G135: 5888 | H135: 3038
A136: 68 | C136: 16830 | D136: 16186 | E136: 15004 | F136: 10623 | G136: 6679 | H136: 3411
A137: 69 | C137: 18973 | D137: 18247 | E137: 16914 | F137: 11977 | G137: 7520 | H137: 3833
A138: 70 | C138: 21265 | D138: 20451 | E138: 18959 | F138: 13424 | G138: 8454 | H138: 4275
A139: 71 | C139: 23670 | D139: 22762 | E139: 21102 | F139: 14940 | G139: 9433 | H139: 4743
A140: 72 | C140: 26184 | D140: 25181 | E140: 23343 | F140: 16529 | G140: 10482 | H140: 5233
A141: 73 | C141: 28848 | D141: 27745 | E141: 25718 | F141: 18210 | G141: 11604 | H141: 5747
A142: 74 | C142: 31620 | D142: 30409 | E142: 28189 | F142: 19960 | G142: 12796 | H142: 6259
A143: 75 | C143: 34504 | D143: 33182 | E143: 30760 | F143: 21779 | G143: 14056 | H143: 6797
A144: 76 | C144: 37501 | D144: 36064 | E144: 33433 | F144: 23671 | G144: 15385 | H144: 7356
A145: 77 | C145: 40605 | D145: 39051 | E145: 36199 | F145: 25631 | G145: 16785 | H145: 7939
A146: 78 | C146: 43859 | D146: 42180 | E146: 39102 | F146: 27685 | G146: 18256 | H146: 8524
A147: 79 | C147: 47224 | D147: 45416 | E147: 42100 | F147: 29809 | G147: 19773 | H147: 9154
A148: 80 | B148: o mas | C148: 50703 | D148: 48760 | E148: 45200 | F148: 32006 | G148: 21384 | H148: 9763
A149: 1 | B149: Hijo | C149: 854 | D149: 821 | E149: 763 | F149: 540 | G149: 451 | H149: 355
A150: 2 | B150: Hijos | C150: 1337 | D150: 1286 | E150: 1191 | F150: 845 | G150: 705 | H150: 557
A151: 3 | B151: Hijos o más | C151: 1927 | D151: 1853 | E151: 1718 | F151: 1218 | G151: 1016 | H151: 801
A152: 1 | B152: Rider Comp. Maternidad | C152: 225 | D152: 225 | E152: 225 | F152: 0 | G152: 0 | H152: 0
A153: 1 | B153: Transplante de organos | C153: 300 | D153: 300 | E153: 300 | F153: 300 | G153: 300 | H153: 300
A160: BUPA CLASSIC CARE
A161: TARIFAS ANUALES
A163: EDAD | D163: ET2 | E163: ET3 | F163: ET4 | G163: ET5 | H163: ET6
A164: 18 | D164: 4309 | E164: 3342 | F164: 2180 | G164: 1600 | H164: 1125
A165: 19 | D165: 4395 | E165: 3384 | F165: 2220 | G165: 1600 | H165: 1160
A166: 20 | D166: 4433 | E166: 3466 | F166: 2262 | G166: 1643 | H166: 1160
A167: 21 | D167: 4520 | E167: 3556 | F167: 2302 | G167: 1681 | H167: 1203
A168: 22 | D168: 4609 | E168: 3638 | F168: 2344 | G168: 1721 | H168: 1203
A169: 23 | D169: 4648 | E169: 3677 | F169: 2381 | G169: 1721 | H169: 1246
A170: 24 | D170: 4730 | E170: 3765 | F170: 2468 | G170: 1762 | H170: 1280
A171: 25 | D171: 4817 | E171: 3846 | F171: 2507 | G171: 1803 | H171: 1280
A172: 26 | D172: 4902 | E172: 3932 | F172: 2547 | G172: 1840 | H172: 1323
A173: 27 | D173: 4942 | E173: 4014 | F173: 2591 | G173: 1882 | H173: 1323
A174: 28 | D174: 5067 | E174: 4100 | F174: 2628 | G174: 1920 | H174: 1361
A175: 29 | D175: 5153 | E175: 4185 | F175: 2711 | G175: 1959 | H175: 1398
A176: 30 | D176: 5280 | E176: 4309 | F176: 2794 | G176: 2002 | H176: 1443
A177: 31 | D177: 5362 | E177: 4395 | F177: 2837 | G177: 2044 | H177: 1443
A178: 32 | D178: 5489 | E178: 4520 | F178: 2919 | G178: 2079 | H178: 1479
A179: 33 | D179: 5617 | E179: 4648 | F179: 3000 | G179: 2122 | H179: 1524
A180: 34 | D180: 5744 | E180: 4778 | F180: 3082 | G180: 2201 | H180: 1562
A181: 35 | D181: 5915 | E181: 4902 | F181: 3164 | G181: 2240 | H181: 1600
A182: 36 | D182: 6037 | E182: 5028 | F182: 3246 | G182: 2317 | H182: 1643
A183: 37 | D183: 6164 | E183: 5153 | F183: 3328 | G183: 2359 | H183: 1681
A184: 38 | D184: 6333 | E184: 5321 | F184: 3454 | G184: 2438 | H184: 1721
A185: 39 | D185: 6503 | E185: 5489 | F185: 3572 | G185: 2523 | H185: 1762
A186: 40 | D186: 6712 | E186: 5617 | F186: 3658 | G186: 2558 | H186: 1803
A187: 41 | D187: 6879 | E187: 5788 | F187: 3780 | G187: 2640 | H187: 1840
A188: 42 | D188: 7050 | E188: 5952 | F188: 3901 | G188: 2719 | H188: 1882
A189: 43 | D189: 7262 | E189: 6164 | F189: 4023 | G189: 2798 | H189: 1959
A190: 44 | D190: 7471 | E190: 6333 | F190: 4187 | G190: 2881 | H190: 2002
A191: 45 | D191: 7680 | E191: 6543 | F191: 4310 | G191: 2962 | H191: 2079
A192: 46 | D192: 7893 | E192: 6755 | F192: 4435 | G192: 3039 | H192: 2122
A193: 47 | D193: 8102 | E193: 6924 | F193: 4599 | G193: 3119 | H193: 2162
A194: 48 | D194: 8439 | E194: 7217 | F194: 4803 | G194: 3239 | H194: 2240
A195: 49 | D195: 8734 | E195: 7471 | F195: 4969 | G195: 3362 | H195: 2317
A196: 50 | D196: 9030 | E196: 7724 | F196: 5175 | G196: 3477 | H196: 2359
A197: 51 | D197: 9324 | E197: 8016 | F197: 5382 | G197: 3598 | H197: 2438
A198: 52 | D198: 9619 | E198: 8270 | F198: 5542 | G198: 3717 | H198: 2523
A199: 53 | D199: 9999 | E199: 8607 | F199: 5788 | G199: 3837 | H199: 2600
A200: 54 | D200: 10377 | E200: 8947 | F200: 6037 | G200: 3992 | H200: 2640
A201: 55 | D201: 10757 | E201: 9285 | F201: 6280 | G201: 4116 | H201: 2719
A202: 56 | D202: 11134 | E202: 9619 | F202: 6527 | G202: 4274 | H202: 2798
A203: 57 | D203: 11517 | E203: 9955 | F203: 6772 | G203: 4437 | H203: 2881
A204: 58 | D204: 12021 | E204: 10377 | F204: 7143 | G204: 4595 | H204: 2962
A205: 59 | D205: 12483 | E205: 10797 | F205: 7471 | G205: 4794 | H205: 3039
A206: 60 | D206: 12993 | E206: 11264 | F206: 7799 | G206: 4995 | H206: 3158
A207: 61 | D207: 13707 | E207: 11850 | F207: 8251 | G207: 5235 | H207: 3239
A208: 62 | D208: 14633 | E208: 12692 | F208: 8865 | G208: 5595 | H208: 3396
A209: 63 | D209: 16021 | E209: 13876 | F209: 9729 | G209: 6110 | H209: 3560
A210: 64 | D210: 17918 | E210: 15520 | F210: 10915 | G210: 6830 | H210: 3796
A211: 65 | D211: 20364 | E211: 17627 | F211: 12435 | G211: 7747 | H211: 4156
A212: 66 | D212: 23355 | E212: 20280 | F212: 14280 | G212: 8826 | H212: 4595
A213: 67 | D213: 26727 | E213: 23268 | F213: 16415 | G213: 10064 | H213: 5193
A214: 68 | D214: 30348 | E214: 26514 | F214: 18671 | G214: 11422 | H214: 5833
A215: 69 | D215: 34141 | E215: 29930 | F215: 21049 | G215: 12856 | H215: 6553
A216: 70 | D216: 38060 | E216: 33420 | F216: 23590 | G216: 14456 | H216: 7310
A217: 71 | D217: 42105 | E217: 37086 | F217: 26258 | G217: 16129 | H217: 8109
A218: 72 | D218: 46271 | E218: 40796 | F218: 29048 | G218: 17921 | H218: 8946
A219: 73 | D219: 50528 | E219: 44629 | F219: 32003 | G219: 19841 | H219: 9825
A220: 74 | D220: 54825 | E220: 48551 | F220: 35078 | G220: 21879 | H220: 10702
A221: 75 | D221: 59247 | E221: 52508 | F221: 38277 | G221: 24034 | H221: 11620
A222: 76 | D222: 63716 | E222: 56550 | F222: 41602 | G222: 26309 | H222: 12577
A223: 77 | D223: 68263 | E223: 60637 | F223: 45045 | G223: 28702 | H223: 13573
... 81 more rows
